Workbook

Sheet Analysis
A1: Rikkel Corp | F1: Target Period | G1: =C3 -> 2024-12-31
A2: Password: risk | F2: In Thousands? | G2: Yes
B3: 2023-12-31 | C3: 2024-12-31 | D3: 2025-03-31 | H3: Override
A4: Revenue | B4: 99228 | C4: 102503 | D4: 22089 | F4: Revenue is (Satisfactory) | G4: =IF(G2="No",IF(H4="",_xlfn.IFS(Analysis!C4/1000000>Ranges!C2,Wording!A2,AND(Analysis!C4/1000000<=Ranges!C2,Analysis!C4/1000000>=Ranges!C4),Wording!A3,Analysis!C4/1000000<Ranges!C4,Wording!A4),H4),IF(H4="",_xlfn.IFS(Analysis!C4/1000>Ranges!C2,Wording!A2,AND(Analysis!C4/1000<=Ranges!C2,Analysis!C4/1000>=Ranges!C4),Wording!A3,Analysis!C4/1000<Ranges!C4,Wording!A4),H4)) -> satisfactory | J4: Financial Analysis
A5: Net Operating Profit | B5: 4242 | C5: 2723 | D5: 724 | F5: Net Revenue (increasing) | G5: =IF(H5="",IF((C4/B4)-1<0,Wording!B3,Wording!B2),H5) -> increasing | J5: Revenue and Profitability
A6: Net Income | B6: 2461 | C6: 1510 | D6: 548 | F6: Revenue Change % | G6: =IF(H6="",ABS((C4/B4)-1),H6) -> 0.03300479703 | J6: ="• Revenue is " & G4 & " with revenues " & G5 & " " & ROUND((G6*100),1) & "% in " & G7 & " to $" & ROUND(G8,1) & "MM." -> • Revenue is satisfactory with revenues increasing 3.3% in 2024 to $102.5MM.
A7: Cash | B7: 1395 | C7: 157 | D7: 308 | F7: Target Period | G7: =IF(H7="",YEAR(G1),H7) -> 2024 | J7: ="• Net operating profit of "&IF(G10<0,"-$"&ROUND(ABS(G10),1) &"MM with "& G11 &" operating margin of "&ROUND((G12*100),1)&"%.","$"&ROUND(G10,1) &"MM with "&G11&" operating margin of "&ROUND((G12*100),1)&"%.") -> • Net operating profit of $2.7MM with improved operating margin of 2.7%.
A8: Time Deposits | F8: Revenue for Target Period | G8: =IF(H8="",IF(G2="No",C4/1000000,C4/1000),H8) -> 102.503 | J8: ="• Profitability is " & G14 & " as evidenced by their " & G15 & " net margin of " & ROUND(G16*100,1) & "% with " & IF(G18<0,"-$" & ROUND(ABS(G18),1), "$" & ROUND(G18,1)) & "MM in " & G19 & "." -> • Profitability is sufficient as evidenced by their contracting net margin of 1.5% with $1.5MM in net income.
A9: Marketable Securities
A10: Restricted Liq. Assets (Manual) | F10: Net Operating Profit X | G10: =IF(H10="",IF(G2="No",C5/1000000,C5/1000),H10) -> 2.723 | J10: Liquidity and Cash Flow
A11: Total Liquid Assets Avaialbe | B11: =SUM(B7:B9)-B10 -> 1395 | C11: =SUM(C7:C9)-C10 -> 157 | D11: 308 | F11: Net Operating Profit is (Improving) | G11: =IF(H11="",IF(C5/B5>0,Wording!D2,Wording!D3),H11) -> improved | J11: ="• Liquidity is " & G20 & " as evidenced by their quick ratio of " & ROUND(G21,2) & "x and current ratio of " & ROUND(G22,2) & "x with $" & ROUND(G23,1) & "MM in cash." -> • Liquidity is sufficient as evidenced by their quick ratio of 0.11x and current ratio of 1.26x with $0.2MM in cash.
A12: Quick Ratio | B12: 0.1601175905 | C12: 0.109156457 | D12: 0.143906013 | F12: Change in Net Operting Margin | G12: =IF(H12="",C5/C4,H12) -> 0.02656507614 | J12: ="• Working Capital is " & IF(G25<0,"-$" & ROUND(ABS(G25),1), "$" & ROUND(G25,1)) & "MM showing " &G27 & " coverage of current liabilities." -> • Working Capital is $3.4MM showing sufficient coverage of current liabilities.
A13: Current Ratio | B13: 1.218516344 | C13: 1.263647552 | D13: 1.316646465 | J13: ="• The company has " & G29 & " cashflow with " & IF(G30 <0,"-$" & ROUND(ABS(G30),1), "$" & ROUND(G30,1)) & "MM in EBITDA and net " & G31 & " in cash of " & IF(G32<0,"-$" & ROUND(ABS(G32),1), "$" & ROUND(G32,1)) & "MM YOY." -> • The company has satisfactory cashflow with $2.8MM in EBITDA and net decrease in cash of -$1.2MM YOY.
A14: Working Capital | B14: 2708.86 | C14: 3411.57 | D14: 3861.38 | F14: Profitability is (Satisfatory) | G14: =IF(H14="",_xlfn.IFS(C6/C4>Ranges!C6,Wording!F2,AND(C6/C4<=Ranges!C6,C6/C4>=Ranges!C8),Wording!F3,C6/C4<Ranges!C8,Wording!F4),) -> sufficient
A15: EBITDA | B15: 4242 | C15: 2750 | D15: 751 | F15: as evidenced by (Improving) | G15: =IF(H15="",IF(C6/C4>B6/B4,Wording!G2,Wording!G3),H15) -> contracting | J15: Solvency and Leverage
A16: Long Term Debt | F16: Net Profit Margin % | G16: =IF(H16="",C6/C4,H16) -> 0.01473127616 | J16: ="• With Debt/TNW of " & ROUND(G33,2) & "x and Debt/EBITDA of " & ROUND(G34,2) & "x, the company " & G35 & "." -> • With Debt/TNW of 1.6x and Debt/EBITDA of 2.1x, the company is sufficiently solvent.
A17: Govt Remittance Payable - LTP | J17: ="• " & IF(G37 <0,"-$" & ROUND(ABS(G37),1), "$" & ROUND(G37,1)) & "MM CPLTD + " & IF(G38 <0,"-$" & ROUND(ABS(G38),1), "$" & ROUND(G38,1)) & "MM Interest with long-term liabilities totaling " & IF(G39 <0,"-$" & ROUND(ABS(G39),1), "$" & ROUND(G39,1)) & "MM with a DSCR of " & ROUND(G40,2) & "x and FCCR of " & ROUND(G41,2) & "x shows " & G42 & " coverage of debt payment obligations." -> • $0MM CPLTD + $1.2MM Interest with long-term liabilities totaling $0MM with a DSCR of 2.28x and FCCR of 2.28x shows satisfactory coverage of debt payment obligations.
A18: LT Capital Lease Obligations | F18: Net Profit of X | G18: =IF(H18="",IF(G2="No",C6/1000000,C6/1000),H18) -> 1.51 | J18: ="• Tangible Net Worth is " & IF(G44 <0,"-$" & ROUND(ABS(G44),1), "$" & ROUND(G44,1))& "MM (" & ROUND(G45*100,1) & "% of total assets)" -> • Tangible Net Worth is $3.6MM (21.8% of total assets)
A19: Finance Leases - LT | F19: in (net loss) | G19: =IF(H19="",IF(C6<0,Wording!H3,Wording!H2),H19) -> net income
A20: Operating Leases - LT | F20: Liquidity is (satisfactory) | G20: =IF(H20="",_xlfn.IFS(C13>Ranges!C10,Wording!A7,AND(C13<=Ranges!C10,C13>=Ranges!C12),Wording!A8,C13<Ranges!C12,Wording!A9),H20) -> sufficient
A21: Loans from Officers/Stkhldrs - LTP | F21: Quick Ratio | G21: =IF(H21="",C12,H21) -> 0.109156457
A22: Loans from Related Co - LTP | F22: Current Ratio | G22: =IF(H2="",C13,H22) -> 1.263647552
A23: Bank Line of Credit | B23: 4997 | C23: 4844 | D23: 4470 | F23: X amount in Cash | G23: =IF(H23="",IF(G2="No",(C11)/1000000,(C11)/1000),H23) -> 0.157
A24: Credit Card Payable | B24: 137 | C24: 428 | D24: 441
A25: Short Term Notes Payable | C25: 500 | F25: Working capital is X | G25: =IF(H25="",IF(G2="No",(C14)/1000000,(C14)/1000),H25) -> 3.41157
A26: CPLTD
A27: Govt Remittance Payable - CP | F27: this shows (sufficent) | G27: =IF(H27="",_xlfn.IFS(C13>Ranges!C10,Wording!A7,AND(C13<=Ranges!C10,C13>=Ranges!C12),Wording!A8,C13<Ranges!C12,Wording!A9),H27) -> sufficient
A28: Credit Card Payables
A29: Finance Leases - CP | F29: Cash flow is (Sufficient) | G29: =G42 -> satisfactory
A30: Operating Leases - CP | F30: Cash flow of X in EBITDA | G30: =IF(H30="",IF(G2="No",C15/1000000,C15/1000),H30) -> 2.75
A31: Total Debt | B31: =SUM(B16:B30) -> 5134 | C31: =SUM(C16:C30) -> 5772 | D31: =SUM(D16:D30) -> 4911 | F31: Net (increase) | G31: =IF(H31="",IF(C7>B7,Wording!G7,Wording!G8),H31) -> decrease
A32: Long Term Liabiliites (Debt) | B32: =SUM(B16:B22) -> 0 | C32: =SUM(C16:C22) -> 0 | D32: =SUM(D16:D22) -> 0 | F32: Change in Cash $X YOY | G32: =IF(H32="",IF(G2="No",(C11-B11)/1000000,(C11-B11)/1000),H32) -> -1.238
A33: Tangible Net Worth | B33: 2926 | C33: 3602 | D33: 4025 | F33: Debt/TNW of ___ | G33: =IF(H33="",(C31-C30-C20)/C33,H33) -> 1.602443087
A34: Interest Expense (-) | B34: 1775 | C34: 1207 | D34: 170 | F34: Debt/EBITDA of ___ | G34: =IF(H34="",(C31-C30-C20)/C15,H34) -> 2.098909091
A35: Total Assets | B35: 15322 | C35: 16542 | D35: 16219 | F35: Has (satisfactory Solvencey) | G35: =IF(G33<0,Wording!A14,IF(H35="",_xlfn.IFS(G33>Ranges!C20,Wording!A14,AND(G33<=Ranges!C20,G33>=Ranges!C18),Wording!A13,G33<Ranges!C18,Wording!A12),H35)) -> is sufficiently solvent
A37: Other Risk Notching Accts | F37: CPLTD (current period) | G37: =IF(H37="",IF(G2="No",(C26+C29)/1000000,(C26+C29)/1000),H37) -> 0
A38: EBIT | B38: 4242 | C38: 2723 | D38: 724 | F38: Interest Expense | G38: =IF(H38="",IF(G2="No",(C34)/1000000,(C34)/1000),H38) -> 1.207
A39: Finished Goods | B39: 11941 | C39: 13015 | D39: 12357 | F39: Long-Term Liabilities | G39: =IF(H39="",IF(G2="No",(C32)/1000000,(C32)/1000),H39) -> 0
A40: Total Equity | B40: 2926 | C40: 3575 | D40: 4025 | F40: DSCR | G40: =IF(H40="",C15/(C34+C26+C29),H40) -> 2.278376139
A41: EBDA | B41: 2461 | C41: 1536 | D41: 575 | F41: FCCR | G41: =IF(H41="",C15/(C34+C26+C29+C30),H41) -> 2.278376139
A42: Gain/Loss on Asset Sale | F42: Shows (Sufficent) | G42: =IF(H42="",_xlfn.IFS(G40>Ranges!C22,Wording!D12,AND(G40<=Ranges!C22,G40>=Ranges!C24),Wording!D13,G40<Ranges!C24,Wording!D14),H42) -> satisfactory
A43: Interest Income
A44: Retained Earnings | B44: 2926 | C44: 3575 | D44: 4024 | F44: TNW | G44: =IF(H44="",IF(G2="No",(C33)/1000000,(C33)/1000),H44) -> 3.602
F45: TNW/Total Assets | G45: =IF(H45="",C33/C35,H45) -> 0.2177487607
B173: 13416854

Sheet AI Spreads
A1: mapped to: | B1: Account Name | C1: 2024 | D1: Mar-2025 YTD | I1: =C1 -> 2024 | J1: =D1 -> Mar-2025 YTD | K1: =[1]Mapping!L1 -> 0
A2: Income Statement | H2: Income Statement
A3: Sales | B3: Revenue - Services | C3: 0 | D3: 26765198 | H3: Revenue | I3: =SUMIF([1]Mapping!$A$1:$A$500,[1]Spreads!$A3,[1]Mapping!C$1:C$500) ->  | J3: =SUMIF([1]Mapping!$A$1:$A$500,[1]Spreads!$A3,[1]Mapping!D$1:D$500) ->  | K3: =SUMIF([1]Mapping!$A$1:$A$500,[1]Spreads!$A3,[1]Mapping!E$1:E$500) -> 
A4: Sales | B4: 41007-Auction | C4: 553523 | D4: 0 | H4: Sales | I4: =SUMIF([1]Mapping!$A$1:$A$500,[1]Spreads!$A4,[1]Mapping!C$1:C$500) ->  | J4: =SUMIF([1]Mapping!$A$1:$A$500,[1]Spreads!$A4,[1]Mapping!D$1:D$500) ->  | K4: =SUMIF([1]Mapping!$A$1:$A$500,[1]Spreads!$A4,[1]Mapping!E$1:E$500) -> 
A5: Sales | B5: 41100-Investment Sales | C5: 92845218 | D5: 0 | H5: Returns & Allowances (-) | I5: =SUMIF([1]Mapping!$A$1:$A$500,[1]Spreads!$A5,[1]Mapping!C$1:C$500) ->  | J5: =SUMIF([1]Mapping!$A$1:$A$500,[1]Spreads!$A5,[1]Mapping!D$1:D$500) ->  | K5: =SUMIF([1]Mapping!$A$1:$A$500,[1]Spreads!$A5,[1]Mapping!E$1:E$500) -> 
A6: Sales | B6: 41105-Financing Fees | C6: 4053413 | D6: 0 | H6: Discounts (-) | I6: =SUMIF([1]Mapping!$A$1:$A$500,[1]Spreads!$A6,[1]Mapping!C$1:C$500) ->  | J6: =SUMIF([1]Mapping!$A$1:$A$500,[1]Spreads!$A6,[1]Mapping!D$1:D$500) ->  | K6: =SUMIF([1]Mapping!$A$1:$A$500,[1]Spreads!$A6,[1]Mapping!E$1:E$500) -> 
A7: Sales | B7: 41200 - Leasing | C7: 9241688 | D7: 0 | H7: Net Revenue | I7: =SUMIF([1]Mapping!$A$1:$A$500,[1]Spreads!$A7,[1]Mapping!C$1:C$500) ->  | J7: =SUMIF([1]Mapping!$A$1:$A$500,[1]Spreads!$A7,[1]Mapping!D$1:D$500) ->  | K7: =SUMIF([1]Mapping!$A$1:$A$500,[1]Spreads!$A7,[1]Mapping!E$1:E$500) -> 
A8: Sales | B8: 41700-Referral Fees | C8: 579740 | D8: 0 | H8: Direct Costs | I8: =SUMIF([1]Mapping!$A$1:$A$500,[1]Spreads!$A8,[1]Mapping!C$1:C$500) ->  | J8: =SUMIF([1]Mapping!$A$1:$A$500,[1]Spreads!$A8,[1]Mapping!D$1:D$500) ->  | K8: =SUMIF([1]Mapping!$A$1:$A$500,[1]Spreads!$A8,[1]Mapping!E$1:E$500) -> 
A9: Sales | B9: 41800-BOR Fees | C9: 83788 | D9: 0 | H9: COGS | I9: =SUMIF([1]Mapping!$A$1:$A$500,[1]Spreads!$A9,[1]Mapping!C$1:C$500) ->  | J9: =SUMIF([1]Mapping!$A$1:$A$500,[1]Spreads!$A9,[1]Mapping!D$1:D$500) ->  | K9: =SUMIF([1]Mapping!$A$1:$A$500,[1]Spreads!$A9,[1]Mapping!E$1:E$500) -> 
B10: Total Revenue - Services | C10: 107357369 | D10: 0 | H10: COGS - Depreciation | I10: =SUMIF([1]Mapping!$A$1:$A$500,[1]Spreads!$A10,[1]Mapping!C$1:C$500) ->  | J10: =SUMIF([1]Mapping!$A$1:$A$500,[1]Spreads!$A10,[1]Mapping!D$1:D$500) ->  | K10: =SUMIF([1]Mapping!$A$1:$A$500,[1]Spreads!$A10,[1]Mapping!E$1:E$500) -> 
A11: COGS | B11: Cost of Services | C11: 0 | D11: 15676248 | H11: Total Direct Costs | I11: =SUMIF([1]Mapping!$A$1:$A$500,[1]Spreads!$A11,[1]Mapping!C$1:C$500) ->  | J11: =SUMIF([1]Mapping!$A$1:$A$500,[1]Spreads!$A11,[1]Mapping!D$1:D$500) ->  | K11: =SUMIF([1]Mapping!$A$1:$A$500,[1]Spreads!$A11,[1]Mapping!E$1:E$500) -> 
A12: COGS | B12: 51000-Financing | C12: 2094510 | D12: 0 | H12: Gross Profit | I12: =SUMIF([1]Mapping!$A$1:$A$500,[1]Spreads!$A12,[1]Mapping!C$1:C$500) ->  | J12: =SUMIF([1]Mapping!$A$1:$A$500,[1]Spreads!$A12,[1]Mapping!D$1:D$500) ->  | K12: =SUMIF([1]Mapping!$A$1:$A$500,[1]Spreads!$A12,[1]Mapping!E$1:E$500) -> 
A13: COGS | B13: 51007-Auction | C13: 278818 | D13: 0 | H13: Operating Expenses | I13: =SUMIF([1]Mapping!$A$1:$A$500,[1]Spreads!$A13,[1]Mapping!C$1:C$500) ->  | J13: =SUMIF([1]Mapping!$A$1:$A$500,[1]Spreads!$A13,[1]Mapping!D$1:D$500) ->  | K13: =SUMIF([1]Mapping!$A$1:$A$500,[1]Spreads!$A13,[1]Mapping!E$1:E$500) -> 
A14: COGS | B14: 51100-Investment Sales | C14: 53914559 | D14: 0 | H14: General & Admin Expense | I14: =SUMIF([1]Mapping!$A$1:$A$500,[1]Spreads!$A14,[1]Mapping!C$1:C$500) ->  | J14: =SUMIF([1]Mapping!$A$1:$A$500,[1]Spreads!$A14,[1]Mapping!D$1:D$500) ->  | K14: =SUMIF([1]Mapping!$A$1:$A$500,[1]Spreads!$A14,[1]Mapping!E$1:E$500) -> 
A15: COGS | B15: 51200-Leasing | C15: 5252465 | D15: 0 | H15: Bad Debt Expense | I15: =SUMIF([1]Mapping!$A$1:$A$500,[1]Spreads!$A15,[1]Mapping!C$1:C$500) ->  | J15: =SUMIF([1]Mapping!$A$1:$A$500,[1]Spreads!$A15,[1]Mapping!D$1:D$500) ->  | K15: =SUMIF([1]Mapping!$A$1:$A$500,[1]Spreads!$A15,[1]Mapping!E$1:E$500) -> 
A16: COGS | B16: 51350-Other | C16: 280800 | D16: 0 | H16: Advertising /Selling Expense | I16: =SUMIF([1]Mapping!$A$1:$A$500,[1]Spreads!$A16,[1]Mapping!C$1:C$500) ->  | J16: =SUMIF([1]Mapping!$A$1:$A$500,[1]Spreads!$A16,[1]Mapping!D$1:D$500) ->  | K16: =SUMIF([1]Mapping!$A$1:$A$500,[1]Spreads!$A16,[1]Mapping!E$1:E$500) -> 
A17: COGS | B17: 51500-Other Commissions Paid Out | C17: 831883 | D17: 0 | H17: Payroll / Wages / Salary | I17: =SUMIF([1]Mapping!$A$1:$A$500,[1]Spreads!$A17,[1]Mapping!C$1:C$500) ->  | J17: =SUMIF([1]Mapping!$A$1:$A$500,[1]Spreads!$A17,[1]Mapping!D$1:D$500) ->  | K17: =SUMIF([1]Mapping!$A$1:$A$500,[1]Spreads!$A17,[1]Mapping!E$1:E$500) -> 
A18: COGS | B18: 51600-BOR | C18: 165933 | D18: 0 | H18: Officer Compensation | I18: =SUMIF([1]Mapping!$A$1:$A$500,[1]Spreads!$A18,[1]Mapping!C$1:C$500) ->  | J18: =SUMIF([1]Mapping!$A$1:$A$500,[1]Spreads!$A18,[1]Mapping!D$1:D$500) ->  | K18: =SUMIF([1]Mapping!$A$1:$A$500,[1]Spreads!$A18,[1]Mapping!E$1:E$500) -> 
A19: COGS | B19: 52000-Referrals Paid Out | C19: 1739526 | D19: 0 | H19: Rent / Occupancy / Lease Expense | I19: =SUMIF([1]Mapping!$A$1:$A$500,[1]Spreads!$A19,[1]Mapping!C$1:C$500) ->  | J19: =SUMIF([1]Mapping!$A$1:$A$500,[1]Spreads!$A19,[1]Mapping!D$1:D$500) ->  | K19: =SUMIF([1]Mapping!$A$1:$A$500,[1]Spreads!$A19,[1]Mapping!E$1:E$500) -> 
B20: Total Cost of Services | C20: 64558495 | D20: 0 | H20: Post-Retirement Benefits / Employee Benefits | I20: =SUMIF([1]Mapping!$A$1:$A$500,[1]Spreads!$A20,[1]Mapping!C$1:C$500) ->  | J20: =SUMIF([1]Mapping!$A$1:$A$500,[1]Spreads!$A20,[1]Mapping!D$1:D$500) ->  | K20: =SUMIF([1]Mapping!$A$1:$A$500,[1]Spreads!$A20,[1]Mapping!E$1:E$500) -> 
B21: Gross Profit | C21: 42798874 | D21: 11088950 | H21: Commissions / Bonuses | I21: =SUMIF([1]Mapping!$A$1:$A$500,[1]Spreads!$A21,[1]Mapping!C$1:C$500) ->  | J21: =SUMIF([1]Mapping!$A$1:$A$500,[1]Spreads!$A21,[1]Mapping!D$1:D$500) ->  | K21: =SUMIF([1]Mapping!$A$1:$A$500,[1]Spreads!$A21,[1]Mapping!E$1:E$500) -> 
A22: General & Admin Expense | B22: Operating Expenses | C22: 0 | D22: 11989870 | H22: Travel and Entertainment Expense | I22: =SUMIF([1]Mapping!$A$1:$A$500,[1]Spreads!$A22,[1]Mapping!C$1:C$500) ->  | J22: =SUMIF([1]Mapping!$A$1:$A$500,[1]Spreads!$A22,[1]Mapping!D$1:D$500) ->  | K22: =SUMIF([1]Mapping!$A$1:$A$500,[1]Spreads!$A22,[1]Mapping!E$1:E$500) -> 
A23: Officer Compensation | B23: 61101-Officers' Compensation | C23: 1017769 | D23: 0 | H23: Taxes | I23: =SUMIF([1]Mapping!$A$1:$A$500,[1]Spreads!$A23,[1]Mapping!C$1:C$500) ->  | J23: =SUMIF([1]Mapping!$A$1:$A$500,[1]Spreads!$A23,[1]Mapping!D$1:D$500) ->  | K23: =SUMIF([1]Mapping!$A$1:$A$500,[1]Spreads!$A23,[1]Mapping!E$1:E$500) -> 
A24: Payroll / Wages / Salary | B24: 61102 Bonuses | C24: 943063 | D24: 0 | H24: Professional Fees | I24: =SUMIF([1]Mapping!$A$1:$A$500,[1]Spreads!$A24,[1]Mapping!C$1:C$500) ->  | J24: =SUMIF([1]Mapping!$A$1:$A$500,[1]Spreads!$A24,[1]Mapping!D$1:D$500) ->  | K24: =SUMIF([1]Mapping!$A$1:$A$500,[1]Spreads!$A24,[1]Mapping!E$1:E$500) -> 
A25: Payroll / Wages / Salary | B25: 61103-Regular Wages & Salaries | C25: 12843929 | D25: 0 | H25: Asset Impairment | I25: =SUMIF([1]Mapping!$A$1:$A$500,[1]Spreads!$A25,[1]Mapping!C$1:C$500) ->  | J25: =SUMIF([1]Mapping!$A$1:$A$500,[1]Spreads!$A25,[1]Mapping!D$1:D$500) ->  | K25: =SUMIF([1]Mapping!$A$1:$A$500,[1]Spreads!$A25,[1]Mapping!E$1:E$500) -> 
A26: Payroll / Wages / Salary | B26: 61105-Vacation Expense | C26: 392039 | D26: 0 | H26: Insurance Expense | I26: =SUMIF([1]Mapping!$A$1:$A$500,[1]Spreads!$A26,[1]Mapping!C$1:C$500) ->  | J26: =SUMIF([1]Mapping!$A$1:$A$500,[1]Spreads!$A26,[1]Mapping!D$1:D$500) ->  | K26: =SUMIF([1]Mapping!$A$1:$A$500,[1]Spreads!$A26,[1]Mapping!E$1:E$500) -> 
A27: Post-Retirement Benefits / Employee Benefits | B27: 61210 Benefits | C27: 995572 | D27: 0 | H27: Research & Development | I27: =SUMIF([1]Mapping!$A$1:$A$500,[1]Spreads!$A27,[1]Mapping!C$1:C$500) ->  | J27: =SUMIF([1]Mapping!$A$1:$A$500,[1]Spreads!$A27,[1]Mapping!D$1:D$500) ->  | K27: =SUMIF([1]Mapping!$A$1:$A$500,[1]Spreads!$A27,[1]Mapping!E$1:E$500) -> 
A28: Payroll / Wages / Salary | B28: 61230-Payroll Taxes | C28: 1330200 | D28: 0 | H28: Depreciation | I28: =SUMIF([1]Mapping!$A$1:$A$500,[1]Spreads!$A28,[1]Mapping!C$1:C$500) ->  | J28: =SUMIF([1]Mapping!$A$1:$A$500,[1]Spreads!$A28,[1]Mapping!D$1:D$500) ->  | K28: =SUMIF([1]Mapping!$A$1:$A$500,[1]Spreads!$A28,[1]Mapping!E$1:E$500) -> 
A29: Professional Fees | B29: 61235-PEO Service Fees | C29: 286870 | D29: 0 | H29: Amortization | I29: =SUMIF([1]Mapping!$A$1:$A$500,[1]Spreads!$A29,[1]Mapping!C$1:C$500) ->  | J29: =SUMIF([1]Mapping!$A$1:$A$500,[1]Spreads!$A29,[1]Mapping!D$1:D$500) ->  | K29: =SUMIF([1]Mapping!$A$1:$A$500,[1]Spreads!$A29,[1]Mapping!E$1:E$500) -> 
A30: Payroll / Wages / Salary | B30: 61236-Workers Comp | C30: 72354 | D30: 0 | H30: Total Operating Expenses | I30: =SUMIF([1]Mapping!$A$1:$A$500,[1]Spreads!$A30,[1]Mapping!C$1:C$500) ->  | J30: =SUMIF([1]Mapping!$A$1:$A$500,[1]Spreads!$A30,[1]Mapping!D$1:D$500) ->  | K30: =SUMIF([1]Mapping!$A$1:$A$500,[1]Spreads!$A30,[1]Mapping!E$1:E$500) -> 
A31: Post-Retirement Benefits / Employee Benefits | B31: 61240-Other - Benefits/Processing | C31: 886 | D31: 0 | H31: Net Operating Profit | I31: =SUMIF([1]Mapping!$A$1:$A$500,[1]Spreads!$A31,[1]Mapping!C$1:C$500) ->  | J31: =SUMIF([1]Mapping!$A$1:$A$500,[1]Spreads!$A31,[1]Mapping!D$1:D$500) ->  | K31: =SUMIF([1]Mapping!$A$1:$A$500,[1]Spreads!$A31,[1]Mapping!E$1:E$500) -> 
A32: Post-Retirement Benefits / Employee Benefits | B32: 61250-401k Match | C32: 415679 | D32: 0 | H32: Other Income / Expenses | I32: =SUMIF([1]Mapping!$A$1:$A$500,[1]Spreads!$A32,[1]Mapping!C$1:C$500) ->  | J32: =SUMIF([1]Mapping!$A$1:$A$500,[1]Spreads!$A32,[1]Mapping!D$1:D$500) ->  | K32: =SUMIF([1]Mapping!$A$1:$A$500,[1]Spreads!$A32,[1]Mapping!E$1:E$500) -> 
A33: General & Admin Expense | B33: 61400-Reimbursements | C33: -263878 | D33: 0 | H33: Interest Expense (-) | I33: =SUMIF([1]Mapping!$A$1:$A$500,[1]Spreads!$A33,[1]Mapping!C$1:C$500) ->  | J33: =SUMIF([1]Mapping!$A$1:$A$500,[1]Spreads!$A33,[1]Mapping!D$1:D$500) ->  | K33: =SUMIF([1]Mapping!$A$1:$A$500,[1]Spreads!$A33,[1]Mapping!E$1:E$500) -> 
A34: General & Admin Expense | B34: 61500-Relocation Fees | C34: 17516 | D34: 0 | H34: Interest Income | I34: =SUMIF([1]Mapping!$A$1:$A$500,[1]Spreads!$A34,[1]Mapping!C$1:C$500) ->  | J34: =SUMIF([1]Mapping!$A$1:$A$500,[1]Spreads!$A34,[1]Mapping!D$1:D$500) ->  | K34: =SUMIF([1]Mapping!$A$1:$A$500,[1]Spreads!$A34,[1]Mapping!E$1:E$500) -> 
A35: General & Admin Expense | B35: 61550-Other | C35: 12481 | D35: 0 | H35: Other Income | I35: =SUMIF([1]Mapping!$A$1:$A$500,[1]Spreads!$A35,[1]Mapping!C$1:C$500) ->  | J35: =SUMIF([1]Mapping!$A$1:$A$500,[1]Spreads!$A35,[1]Mapping!D$1:D$500) ->  | K35: =SUMIF([1]Mapping!$A$1:$A$500,[1]Spreads!$A35,[1]Mapping!E$1:E$500) -> 
A36: General & Admin Expense | B36: 61553 Severance Payments. | C36: 45497 | D36: 0 | H36: Other Expense (-) | I36: =SUMIF([1]Mapping!$A$1:$A$500,[1]Spreads!$A36,[1]Mapping!C$1:C$500) ->  | J36: =SUMIF([1]Mapping!$A$1:$A$500,[1]Spreads!$A36,[1]Mapping!D$1:D$500) ->  | K36: =SUMIF([1]Mapping!$A$1:$A$500,[1]Spreads!$A36,[1]Mapping!E$1:E$500) -> 
B37: Payroll Expenses | C37: 18109977 | D37: 0 | H37: Non-Cash Income | I37: =SUMIF([1]Mapping!$A$1:$A$500,[1]Spreads!$A37,[1]Mapping!C$1:C$500) ->  | J37: =SUMIF([1]Mapping!$A$1:$A$500,[1]Spreads!$A37,[1]Mapping!D$1:D$500) ->  | K37: =SUMIF([1]Mapping!$A$1:$A$500,[1]Spreads!$A37,[1]Mapping!E$1:E$500) -> 
A38: Bad Debt Expense | B38: 61000-Bad Debt Expense | C38: 1178945 | D38: 0 | H38: Non-Cash Expense (-) | I38: =SUMIF([1]Mapping!$A$1:$A$500,[1]Spreads!$A38,[1]Mapping!C$1:C$500) ->  | J38: =SUMIF([1]Mapping!$A$1:$A$500,[1]Spreads!$A38,[1]Mapping!D$1:D$500) ->  | K38: =SUMIF([1]Mapping!$A$1:$A$500,[1]Spreads!$A38,[1]Mapping!E$1:E$500) -> 
A39: Rent / Occupancy / Lease Expense | B39: 63100-Rent | C39: 5212941 | D39: 0 | H39: Gain/(Loss) on Asset Sale | I39: =SUMIF([1]Mapping!$A$1:$A$500,[1]Spreads!$A39,[1]Mapping!C$1:C$500) ->  | J39: =SUMIF([1]Mapping!$A$1:$A$500,[1]Spreads!$A39,[1]Mapping!D$1:D$500) ->  | K39: =SUMIF([1]Mapping!$A$1:$A$500,[1]Spreads!$A39,[1]Mapping!E$1:E$500) -> 
A40: General & Admin Expense | B40: 63101 - Storage | C40: 5546 | D40: 0 | H40: Unrealized Gain/(Loss) | I40: =SUMIF([1]Mapping!$A$1:$A$500,[1]Spreads!$A40,[1]Mapping!C$1:C$500) ->  | J40: =SUMIF([1]Mapping!$A$1:$A$500,[1]Spreads!$A40,[1]Mapping!D$1:D$500) ->  | K40: =SUMIF([1]Mapping!$A$1:$A$500,[1]Spreads!$A40,[1]Mapping!E$1:E$500) -> 
A41: General & Admin Expense | B41: 63102 - Office Supplies | C41: 47499 | D41: 0 | H41: Transaction Costs | I41: =SUMIF([1]Mapping!$A$1:$A$500,[1]Spreads!$A41,[1]Mapping!C$1:C$500) ->  | J41: =SUMIF([1]Mapping!$A$1:$A$500,[1]Spreads!$A41,[1]Mapping!D$1:D$500) ->  | K41: =SUMIF([1]Mapping!$A$1:$A$500,[1]Spreads!$A41,[1]Mapping!E$1:E$500) -> 
A42: General & Admin Expense | B42: 63103-Operating Expense | C42: 586763 | D42: 0 | H42: Total Other Income / Expenses | I42: =SUMIF([1]Mapping!$A$1:$A$500,[1]Spreads!$A42,[1]Mapping!C$1:C$500) ->  | J42: =SUMIF([1]Mapping!$A$1:$A$500,[1]Spreads!$A42,[1]Mapping!D$1:D$500) ->  | K42: =SUMIF([1]Mapping!$A$1:$A$500,[1]Spreads!$A42,[1]Mapping!E$1:E$500) -> 
A43: General & Admin Expense | B43: 63104-Parking | C43: 285250 | D43: 0 | H43: Income Before Tax | I43: =SUMIF([1]Mapping!$A$1:$A$500,[1]Spreads!$A43,[1]Mapping!C$1:C$500) ->  | J43: =SUMIF([1]Mapping!$A$1:$A$500,[1]Spreads!$A43,[1]Mapping!D$1:D$500) ->  | K43: =SUMIF([1]Mapping!$A$1:$A$500,[1]Spreads!$A43,[1]Mapping!E$1:E$500) -> 
A44: General & Admin Expense | B44: 63105 Office Expense | C44: 166618 | D44: 0 | H44: Current Income Tax | I44: =SUMIF([1]Mapping!$A$1:$A$500,[1]Spreads!$A44,[1]Mapping!C$1:C$500) ->  | J44: =SUMIF([1]Mapping!$A$1:$A$500,[1]Spreads!$A44,[1]Mapping!D$1:D$500) ->  | K44: =SUMIF([1]Mapping!$A$1:$A$500,[1]Spreads!$A44,[1]Mapping!E$1:E$500) -> 
A45: Taxes | B45: 63106 -Real Estate Taxes | C45: 81830 | D45: 0 | H45: Income Tax Credit (+) | I45: =SUMIF([1]Mapping!$A$1:$A$500,[1]Spreads!$A45,[1]Mapping!C$1:C$500) ->  | J45: =SUMIF([1]Mapping!$A$1:$A$500,[1]Spreads!$A45,[1]Mapping!D$1:D$500) ->  | K45: =SUMIF([1]Mapping!$A$1:$A$500,[1]Spreads!$A45,[1]Mapping!E$1:E$500) -> 
A46: General & Admin Expense | B46: 63204 -Electricity | C46: 18390 | D46: 0 | H46: Extraordinary Gain (Loss) | I46: =SUMIF([1]Mapping!$A$1:$A$500,[1]Spreads!$A46,[1]Mapping!C$1:C$500) ->  | J46: =SUMIF([1]Mapping!$A$1:$A$500,[1]Spreads!$A46,[1]Mapping!D$1:D$500) ->  | K46: =SUMIF([1]Mapping!$A$1:$A$500,[1]Spreads!$A46,[1]Mapping!E$1:E$500) -> 
A47: General & Admin Expense | B47: 63515 -Furniture & Fixtures | C47: 22974 | D47: 0 | H47: After Tax Income | I47: =SUMIF([1]Mapping!$A$1:$A$500,[1]Spreads!$A47,[1]Mapping!C$1:C$500) ->  | J47: =SUMIF([1]Mapping!$A$1:$A$500,[1]Spreads!$A47,[1]Mapping!D$1:D$500) ->  | K47: =SUMIF([1]Mapping!$A$1:$A$500,[1]Spreads!$A47,[1]Mapping!E$1:E$500) -> 
A48: Taxes | B48: 63540-Property Taxes | C48: 16363 | D48: 0 | H48: After Tax Expense (-) | I48: =SUMIF([1]Mapping!$A$1:$A$500,[1]Spreads!$A48,[1]Mapping!C$1:C$500) ->  | J48: =SUMIF([1]Mapping!$A$1:$A$500,[1]Spreads!$A48,[1]Mapping!D$1:D$500) ->  | K48: =SUMIF([1]Mapping!$A$1:$A$500,[1]Spreads!$A48,[1]Mapping!E$1:E$500) -> 
A49: General & Admin Expense | B49: 63520 Rental - Coffee/Water | C49: 19577 | D49: 0 | H49: After Tax Non-Cash Expense | I49: =SUMIF([1]Mapping!$A$1:$A$500,[1]Spreads!$A49,[1]Mapping!C$1:C$500) ->  | J49: =SUMIF([1]Mapping!$A$1:$A$500,[1]Spreads!$A49,[1]Mapping!D$1:D$500) ->  | K49: =SUMIF([1]Mapping!$A$1:$A$500,[1]Spreads!$A49,[1]Mapping!E$1:E$500) -> 
A50: Travel and Entertainment Expense | B50: 63360-Staff Meals | C50: 25824 | D50: 0 | H50: Net Income | I50: =SUM(I4:I6)-I9-I10-SUM(I13:I29)+SUM(I33:I46)-I44*2 ->  | J50: =SUM(J4:J6)-J9-J10-SUM(J13:J29)+SUM(J33:J46)-J44*2 -> 
A51: General & Admin Expense | B51: 63200-Utilities | C51: 13033 | D51: 0 | H51: EBIT | I51: =SUMIF([1]Mapping!$A$1:$A$500,[1]Spreads!$A51,[1]Mapping!C$1:C$500) ->  | J51: =SUMIF([1]Mapping!$A$1:$A$500,[1]Spreads!$A51,[1]Mapping!D$1:D$500) ->  | K51: =SUMIF([1]Mapping!$A$1:$A$500,[1]Spreads!$A51,[1]Mapping!E$1:E$500) -> 
A52: General & Admin Expense | B52: 63530-Repair/Maintenance | C52: 11284 | D52: 0 | H52: EBDA | I52: =SUMIF([1]Mapping!$A$1:$A$500,[1]Spreads!$A52,[1]Mapping!C$1:C$500) ->  | J52: =SUMIF([1]Mapping!$A$1:$A$500,[1]Spreads!$A52,[1]Mapping!D$1:D$500) ->  | K52: =SUMIF([1]Mapping!$A$1:$A$500,[1]Spreads!$A52,[1]Mapping!E$1:E$500) -> 
A53: Advertising /Selling Expense | B53: 61610-Booth Expenses | C53: 595231 | D53: 0 | H53: EBITDAR | I53: =SUMIF([1]Mapping!$A$1:$A$500,[1]Spreads!$A53,[1]Mapping!C$1:C$500) ->  | J53: =SUMIF([1]Mapping!$A$1:$A$500,[1]Spreads!$A53,[1]Mapping!D$1:D$500) ->  | K53: =SUMIF([1]Mapping!$A$1:$A$500,[1]Spreads!$A53,[1]Mapping!E$1:E$500) -> 
A54: Travel and Entertainment Expense | B54: 61620-Meals & Entertainment | C54: 9203 | D54: 0 | H54: EBITDA | I54: =SUMIF([1]Mapping!$A$1:$A$500,[1]Spreads!$A54,[1]Mapping!C$1:C$500) ->  | J54: =SUMIF([1]Mapping!$A$1:$A$500,[1]Spreads!$A54,[1]Mapping!D$1:D$500) ->  | K54: =SUMIF([1]Mapping!$A$1:$A$500,[1]Spreads!$A54,[1]Mapping!E$1:E$500) -> 
A55: Advertising /Selling Expense | B55: 61630-Registration Fees | C55: 100348 | D55: 0 | H55: EBITDA Adjustments | I55: =SUMIF([1]Mapping!$A$1:$A$500,[1]Spreads!$A55,[1]Mapping!C$1:C$500) ->  | J55: =SUMIF([1]Mapping!$A$1:$A$500,[1]Spreads!$A55,[1]Mapping!D$1:D$500) ->  | K55: =SUMIF([1]Mapping!$A$1:$A$500,[1]Spreads!$A55,[1]Mapping!E$1:E$500) -> 
A56: Advertising /Selling Expense | B56: 61640-Sponsorship Fees | C56: 2441 | D56: 0 | H56: Adjusted EBITDA | I56: =SUMIF([1]Mapping!$A$1:$A$500,[1]Spreads!$A56,[1]Mapping!C$1:C$500) ->  | J56: =SUMIF([1]Mapping!$A$1:$A$500,[1]Spreads!$A56,[1]Mapping!D$1:D$500) ->  | K56: =SUMIF([1]Mapping!$A$1:$A$500,[1]Spreads!$A56,[1]Mapping!E$1:E$500) -> 
A57: Travel and Entertainment Expense | B57: 61650-Travel & Lodging | C57: 64577 | D57: 0 | H57: Balance Sheet | I57: =SUMIF([1]Mapping!$A$1:$A$500,[1]Spreads!$A57,[1]Mapping!C$1:C$500) ->  | J57: =SUMIF([1]Mapping!$A$1:$A$500,[1]Spreads!$A57,[1]Mapping!D$1:D$500) ->  | K57: =SUMIF([1]Mapping!$A$1:$A$500,[1]Spreads!$A57,[1]Mapping!E$1:E$500) -> 
A58: Advertising /Selling Expense | B58: 61670-Other | C58: 4133 | D58: 0 | H58: Assets | I58: =SUMIF([1]Mapping!$A$1:$A$500,[1]Spreads!$A58,[1]Mapping!C$1:C$500) ->  | J58: =SUMIF([1]Mapping!$A$1:$A$500,[1]Spreads!$A58,[1]Mapping!D$1:D$500) ->  | K58: =SUMIF([1]Mapping!$A$1:$A$500,[1]Spreads!$A58,[1]Mapping!E$1:E$500) -> 
A59: Advertising /Selling Expense | B59: 62000- Business Development | C59: 123170 | D59: 0 | H59: Current Assets | I59: =SUMIF([1]Mapping!$A$1:$A$500,[1]Spreads!$A59,[1]Mapping!C$1:C$500) ->  | J59: =SUMIF([1]Mapping!$A$1:$A$500,[1]Spreads!$A59,[1]Mapping!D$1:D$500) ->  | K59: =SUMIF([1]Mapping!$A$1:$A$500,[1]Spreads!$A59,[1]Mapping!E$1:E$500) -> 
A60: Travel and Entertainment Expense | B60: 62200 Entertainment | C60: 85691 | D60: 0 | H60: Cash | I60: =SUMIF([1]Mapping!$A$1:$A$500,[1]Spreads!$A60,[1]Mapping!C$1:C$500) ->  | J60: =SUMIF([1]Mapping!$A$1:$A$500,[1]Spreads!$A60,[1]Mapping!D$1:D$500) ->  | K60: =SUMIF([1]Mapping!$A$1:$A$500,[1]Spreads!$A60,[1]Mapping!E$1:E$500) -> 
A61: Travel and Entertainment Expense | B61: 62300-Meals | C61: 19908 | D61: 0 | H61: Time Deposits | I61: =SUMIF([1]Mapping!$A$1:$A$500,[1]Spreads!$A61,[1]Mapping!C$1:C$500) ->  | J61: =SUMIF([1]Mapping!$A$1:$A$500,[1]Spreads!$A61,[1]Mapping!D$1:D$500) ->  | K61: =SUMIF([1]Mapping!$A$1:$A$500,[1]Spreads!$A61,[1]Mapping!E$1:E$500) -> 
A62: Advertising /Selling Expense | B62: 62400- Gifts | C62: 3630 | D62: 0 | H62: Marketable Securities | I62: =SUMIF([1]Mapping!$A$1:$A$500,[1]Spreads!$A62,[1]Mapping!C$1:C$500) ->  | J62: =SUMIF([1]Mapping!$A$1:$A$500,[1]Spreads!$A62,[1]Mapping!D$1:D$500) ->  | K62: =SUMIF([1]Mapping!$A$1:$A$500,[1]Spreads!$A62,[1]Mapping!E$1:E$500) -> 
A63: Advertising /Selling Expense | B63: 62500 Other | C63: 335 | D63: 0 | H63: Accts/Notes Rec-Trade | I63: =SUMIF([1]Mapping!$A$1:$A$500,[1]Spreads!$A63,[1]Mapping!C$1:C$500) ->  | J63: =SUMIF([1]Mapping!$A$1:$A$500,[1]Spreads!$A63,[1]Mapping!D$1:D$500) ->  | K63: =SUMIF([1]Mapping!$A$1:$A$500,[1]Spreads!$A63,[1]Mapping!E$1:E$500) -> 
A64: Advertising /Selling Expense | B64: 62520-Client Events | C64: 34605 | D64: 0 | H64: Bad Debt Reserve | I64: =SUMIF([1]Mapping!$A$1:$A$500,[1]Spreads!$A64,[1]Mapping!C$1:C$500) ->  | J64: =SUMIF([1]Mapping!$A$1:$A$500,[1]Spreads!$A64,[1]Mapping!D$1:D$500) ->  | K64: =SUMIF([1]Mapping!$A$1:$A$500,[1]Spreads!$A64,[1]Mapping!E$1:E$500) -> 
A65: Travel and Entertainment Expense | B65: 62600-Travel & Lodging | C65: 22786 | D65: 0 | H65: Loans to Related Co - CP | I65: =SUMIF([1]Mapping!$A$1:$A$500,[1]Spreads!$A65,[1]Mapping!C$1:C$500) ->  | J65: =SUMIF([1]Mapping!$A$1:$A$500,[1]Spreads!$A65,[1]Mapping!D$1:D$500) ->  | K65: =SUMIF([1]Mapping!$A$1:$A$500,[1]Spreads!$A65,[1]Mapping!E$1:E$500) -> 
A66: Travel and Entertainment Expense | B66: 68171-Internal Company Events | C66: 533 | D66: 0 | H66: Current Assets - Taxes | I66: =SUMIF([1]Mapping!$A$1:$A$500,[1]Spreads!$A66,[1]Mapping!C$1:C$500) ->  | J66: =SUMIF([1]Mapping!$A$1:$A$500,[1]Spreads!$A66,[1]Mapping!D$1:D$500) ->  | K66: =SUMIF([1]Mapping!$A$1:$A$500,[1]Spreads!$A66,[1]Mapping!E$1:E$500) -> 
A67: Travel and Entertainment Expense | B67: 68172-Internal Events - Meals | C67: 127959 | D67: 0 | H67: Inventory | I67: =SUMIF([1]Mapping!$A$1:$A$500,[1]Spreads!$A67,[1]Mapping!C$1:C$500) ->  | J67: =SUMIF([1]Mapping!$A$1:$A$500,[1]Spreads!$A67,[1]Mapping!D$1:D$500) ->  | K67: =SUMIF([1]Mapping!$A$1:$A$500,[1]Spreads!$A67,[1]Mapping!E$1:E$500) -> 
A68: Travel and Entertainment Expense | B68: 68173-Internal Events - Entertainment | C68: 193842 | D68: 0 | H68: Finished Goods | I68: =SUMIF([1]Mapping!$A$1:$A$500,[1]Spreads!$A68,[1]Mapping!C$1:C$500) ->  | J68: =SUMIF([1]Mapping!$A$1:$A$500,[1]Spreads!$A68,[1]Mapping!D$1:D$500) ->  | K68: =SUMIF([1]Mapping!$A$1:$A$500,[1]Spreads!$A68,[1]Mapping!E$1:E$500) -> 
A69: Travel and Entertainment Expense | B69: 68174-Internal Events - Travel & Lodging | C69: 736640 | D69: 0 | H69: Work in Process | I69: =SUMIF([1]Mapping!$A$1:$A$500,[1]Spreads!$A69,[1]Mapping!C$1:C$500) ->  | J69: =SUMIF([1]Mapping!$A$1:$A$500,[1]Spreads!$A69,[1]Mapping!D$1:D$500) ->  | K69: =SUMIF([1]Mapping!$A$1:$A$500,[1]Spreads!$A69,[1]Mapping!E$1:E$500) -> 
A70: Travel and Entertainment Expense | B70: 68175-Internal Events - Other | C70: 34746 | D70: 0 | H70: Other Inventory | I70: =SUMIF([1]Mapping!$A$1:$A$500,[1]Spreads!$A70,[1]Mapping!C$1:C$500) ->  | J70: =SUMIF([1]Mapping!$A$1:$A$500,[1]Spreads!$A70,[1]Mapping!D$1:D$500) ->  | K70: =SUMIF([1]Mapping!$A$1:$A$500,[1]Spreads!$A70,[1]Mapping!E$1:E$500) -> 
A71: Advertising /Selling Expense | B71: 62701 - Digital | C71: 508 | D71: 0 | H71: Total Inventory | I71: =SUMIF([1]Mapping!$A$1:$A$500,[1]Spreads!$A71,[1]Mapping!C$1:C$500) ->  | J71: =SUMIF([1]Mapping!$A$1:$A$500,[1]Spreads!$A71,[1]Mapping!D$1:D$500) ->  | K71: =SUMIF([1]Mapping!$A$1:$A$500,[1]Spreads!$A71,[1]Mapping!E$1:E$500) -> 
A72: Advertising /Selling Expense | B72: 62703-Brand | C72: 46439 | D72: 0 | H72: Operating Current Assets | I72: =SUMIF([1]Mapping!$A$1:$A$500,[1]Spreads!$A72,[1]Mapping!C$1:C$500) ->  | J72: =SUMIF([1]Mapping!$A$1:$A$500,[1]Spreads!$A72,[1]Mapping!D$1:D$500) ->  | K72: =SUMIF([1]Mapping!$A$1:$A$500,[1]Spreads!$A72,[1]Mapping!E$1:E$500) -> 
A73: Advertising /Selling Expense | B73: 62704-PR | C73: 45680 | D73: 0 | H73: Prepaids/Deferreds - CP | I73: =SUMIF([1]Mapping!$A$1:$A$500,[1]Spreads!$A73,[1]Mapping!C$1:C$500) ->  | J73: =SUMIF([1]Mapping!$A$1:$A$500,[1]Spreads!$A73,[1]Mapping!D$1:D$500) ->  | K73: =SUMIF([1]Mapping!$A$1:$A$500,[1]Spreads!$A73,[1]Mapping!E$1:E$500) -> 
A74: Advertising /Selling Expense | B74: 62707-Mail | C74: 72786 | D74: 0 | H74: Costs in Excess of Billings | I74: =SUMIF([1]Mapping!$A$1:$A$500,[1]Spreads!$A74,[1]Mapping!C$1:C$500) ->  | J74: =SUMIF([1]Mapping!$A$1:$A$500,[1]Spreads!$A74,[1]Mapping!D$1:D$500) ->  | K74: =SUMIF([1]Mapping!$A$1:$A$500,[1]Spreads!$A74,[1]Mapping!E$1:E$500) -> 
A75: Advertising /Selling Expense | B75: 62708 - Printing | C75: 371404 | D75: 0 | H75: Non-Op Current Assets | I75: =SUMIF([1]Mapping!$A$1:$A$500,[1]Spreads!$A75,[1]Mapping!C$1:C$500) ->  | J75: =SUMIF([1]Mapping!$A$1:$A$500,[1]Spreads!$A75,[1]Mapping!D$1:D$500) ->  | K75: =SUMIF([1]Mapping!$A$1:$A$500,[1]Spreads!$A75,[1]Mapping!E$1:E$500) -> 
A76: Advertising /Selling Expense | B76: 62709 - Signs | C76: 279802 | D76: 0 | H76: Total Current Assets | I76: =SUMIF([1]Mapping!$A$1:$A$500,[1]Spreads!$A76,[1]Mapping!C$1:C$500) ->  | J76: =SUMIF([1]Mapping!$A$1:$A$500,[1]Spreads!$A76,[1]Mapping!D$1:D$500) ->  | K76: =SUMIF([1]Mapping!$A$1:$A$500,[1]Spreads!$A76,[1]Mapping!E$1:E$500) -> 
A77: Advertising /Selling Expense | B77: 62710-Photography | C77: 17085 | D77: 0 | H77: Non-Current Assets | I77: =SUMIF([1]Mapping!$A$1:$A$500,[1]Spreads!$A77,[1]Mapping!C$1:C$500) ->  | J77: =SUMIF([1]Mapping!$A$1:$A$500,[1]Spreads!$A77,[1]Mapping!D$1:D$500) ->  | K77: =SUMIF([1]Mapping!$A$1:$A$500,[1]Spreads!$A77,[1]Mapping!E$1:E$500) -> 
A78: Advertising /Selling Expense | B78: 62711 Publication | C78: 8478 | D78: 0 | H78: Fixed Assets | I78: =SUMIF([1]Mapping!$A$1:$A$500,[1]Spreads!$A78,[1]Mapping!C$1:C$500) ->  | J78: =SUMIF([1]Mapping!$A$1:$A$500,[1]Spreads!$A78,[1]Mapping!D$1:D$500) ->  | K78: =SUMIF([1]Mapping!$A$1:$A$500,[1]Spreads!$A78,[1]Mapping!E$1:E$500) -> 
A79: Advertising /Selling Expense | B79: 62740-Marketing Reimbursements | C79: -69450 | D79: 0 | H79: Land | I79: =SUMIF([1]Mapping!$A$1:$A$500,[1]Spreads!$A79,[1]Mapping!C$1:C$500) ->  | J79: =SUMIF([1]Mapping!$A$1:$A$500,[1]Spreads!$A79,[1]Mapping!D$1:D$500) ->  | K79: =SUMIF([1]Mapping!$A$1:$A$500,[1]Spreads!$A79,[1]Mapping!E$1:E$500) -> 
A80: General & Admin Expense | B80: 62801 - Data | C80: 3278722 | D80: 0 | H80: Construction in Progress | I80: =SUMIF([1]Mapping!$A$1:$A$500,[1]Spreads!$A80,[1]Mapping!C$1:C$500) ->  | J80: =SUMIF([1]Mapping!$A$1:$A$500,[1]Spreads!$A80,[1]Mapping!D$1:D$500) ->  | K80: =SUMIF([1]Mapping!$A$1:$A$500,[1]Spreads!$A80,[1]Mapping!E$1:E$500) -> 
A81: General & Admin Expense | B81: 62802-Software | C81: 27745 | D81: 0 | H81: Buildings & Improvements | I81: =SUMIF([1]Mapping!$A$1:$A$500,[1]Spreads!$A81,[1]Mapping!C$1:C$500) ->  | J81: =SUMIF([1]Mapping!$A$1:$A$500,[1]Spreads!$A81,[1]Mapping!D$1:D$500) ->  | K81: =SUMIF([1]Mapping!$A$1:$A$500,[1]Spreads!$A81,[1]Mapping!E$1:E$500) -> 
A82: Professional Fees | B82: 62803-Consulting | C82: 6750 | D82: 0 | H82: Machinery & Equipment | I82: =SUMIF([1]Mapping!$A$1:$A$500,[1]Spreads!$A82,[1]Mapping!C$1:C$500) ->  | J82: =SUMIF([1]Mapping!$A$1:$A$500,[1]Spreads!$A82,[1]Mapping!D$1:D$500) ->  | K82: =SUMIF([1]Mapping!$A$1:$A$500,[1]Spreads!$A82,[1]Mapping!E$1:E$500) -> 
A83: General & Admin Expense | B83: 62804-Photography Reimbursements | C83: 70978 | D83: 0 | H83: Furniture & Fixtures | I83: =SUMIF([1]Mapping!$A$1:$A$500,[1]Spreads!$A83,[1]Mapping!C$1:C$500) ->  | J83: =SUMIF([1]Mapping!$A$1:$A$500,[1]Spreads!$A83,[1]Mapping!D$1:D$500) ->  | K83: =SUMIF([1]Mapping!$A$1:$A$500,[1]Spreads!$A83,[1]Mapping!E$1:E$500) -> 
A84: General & Admin Expense | B84: 62805 - Postage & Delivery | C84: 37508 | D84: 0 | H84: Leasehold Improvements | I84: =SUMIF([1]Mapping!$A$1:$A$500,[1]Spreads!$A84,[1]Mapping!C$1:C$500) ->  | J84: =SUMIF([1]Mapping!$A$1:$A$500,[1]Spreads!$A84,[1]Mapping!D$1:D$500) ->  | K84: =SUMIF([1]Mapping!$A$1:$A$500,[1]Spreads!$A84,[1]Mapping!E$1:E$500) -> 
A85: General & Admin Expense | B85: 62807-ML Expenses | C85: 155045 | D85: 0 | H85: Transportation Equipment | I85: =SUMIF([1]Mapping!$A$1:$A$500,[1]Spreads!$A85,[1]Mapping!C$1:C$500) ->  | J85: =SUMIF([1]Mapping!$A$1:$A$500,[1]Spreads!$A85,[1]Mapping!D$1:D$500) ->  | K85: =SUMIF([1]Mapping!$A$1:$A$500,[1]Spreads!$A85,[1]Mapping!E$1:E$500) -> 
A86: General & Admin Expense | B86: 62808 - Researchers | C86: 65783 | D86: 0 | H86: Finance Leases | I86: =SUMIF([1]Mapping!$A$1:$A$500,[1]Spreads!$A86,[1]Mapping!C$1:C$500) ->  | J86: =SUMIF([1]Mapping!$A$1:$A$500,[1]Spreads!$A86,[1]Mapping!D$1:D$500) ->  | K86: =SUMIF([1]Mapping!$A$1:$A$500,[1]Spreads!$A86,[1]Mapping!E$1:E$500) -> 
A87: General & Admin Expense | B87: 68110-Business Awards | C87: 62082 | D87: 0 | H87: Operating Leases | I87: =SUMIF([1]Mapping!$A$1:$A$500,[1]Spreads!$A87,[1]Mapping!C$1:C$500) ->  | J87: =SUMIF([1]Mapping!$A$1:$A$500,[1]Spreads!$A87,[1]Mapping!D$1:D$500) ->  | K87: =SUMIF([1]Mapping!$A$1:$A$500,[1]Spreads!$A87,[1]Mapping!E$1:E$500) -> 
A88: General & Admin Expense | B88: 62800-Sales Services - Other | C88: 1203 | D88: 0 | H88: Accum Deprec & Impairment (-) | I88: =SUMIF([1]Mapping!$A$1:$A$500,[1]Spreads!$A88,[1]Mapping!C$1:C$500) ->  | J88: =SUMIF([1]Mapping!$A$1:$A$500,[1]Spreads!$A88,[1]Mapping!D$1:D$500) ->  | K88: =SUMIF([1]Mapping!$A$1:$A$500,[1]Spreads!$A88,[1]Mapping!E$1:E$500) -> 
A89: General & Admin Expense | B89: 63201-Cable | C89: 17157 | D89: 0 | H89: Net Fixed Assets | I89: =SUMIF([1]Mapping!$A$1:$A$500,[1]Spreads!$A89,[1]Mapping!C$1:C$500) ->  | J89: =SUMIF([1]Mapping!$A$1:$A$500,[1]Spreads!$A89,[1]Mapping!D$1:D$500) ->  | K89: =SUMIF([1]Mapping!$A$1:$A$500,[1]Spreads!$A89,[1]Mapping!E$1:E$500) -> 
A90: General & Admin Expense | B90: 63202-Internet | C90: 150444 | D90: 0 | H90: Accts/Notes Rec-Long Term | I90: =SUMIF([1]Mapping!$A$1:$A$500,[1]Spreads!$A90,[1]Mapping!C$1:C$500) ->  | J90: =SUMIF([1]Mapping!$A$1:$A$500,[1]Spreads!$A90,[1]Mapping!D$1:D$500) ->  | K90: =SUMIF([1]Mapping!$A$1:$A$500,[1]Spreads!$A90,[1]Mapping!E$1:E$500) -> 
A91: General & Admin Expense | B91: 63203 -Telephone | C91: 288878 | D91: 0 | H91: Accts/Notes Rec-Offcr/Stkh | I91: =SUMIF([1]Mapping!$A$1:$A$500,[1]Spreads!$A91,[1]Mapping!C$1:C$500) ->  | J91: =SUMIF([1]Mapping!$A$1:$A$500,[1]Spreads!$A91,[1]Mapping!D$1:D$500) ->  | K91: =SUMIF([1]Mapping!$A$1:$A$500,[1]Spreads!$A91,[1]Mapping!E$1:E$500) -> 
A92: General & Admin Expense | B92: 63350 - Security | C92: 88744 | D92: 0 | H92: Cash Value Life Insurance | I92: =SUMIF([1]Mapping!$A$1:$A$500,[1]Spreads!$A92,[1]Mapping!C$1:C$500) ->  | J92: =SUMIF([1]Mapping!$A$1:$A$500,[1]Spreads!$A92,[1]Mapping!D$1:D$500) ->  | K92: =SUMIF([1]Mapping!$A$1:$A$500,[1]Spreads!$A92,[1]Mapping!E$1:E$500) -> 
A93: General & Admin Expense | B93: 64250-Equipment Rental | C93: 145281 | D93: 0 | H93: Investment in Subsidiaries | I93: =SUMIF([1]Mapping!$A$1:$A$500,[1]Spreads!$A93,[1]Mapping!C$1:C$500) ->  | J93: =SUMIF([1]Mapping!$A$1:$A$500,[1]Spreads!$A93,[1]Mapping!D$1:D$500) ->  | K93: =SUMIF([1]Mapping!$A$1:$A$500,[1]Spreads!$A93,[1]Mapping!E$1:E$500) -> 
A94: Professional Fees | B94: 64300-IT Services | C94: 43816 | D94: 0 | H94: Loans to Related Co - LTP | I94: =SUMIF([1]Mapping!$A$1:$A$500,[1]Spreads!$A94,[1]Mapping!C$1:C$500) ->  | J94: =SUMIF([1]Mapping!$A$1:$A$500,[1]Spreads!$A94,[1]Mapping!D$1:D$500) ->  | K94: =SUMIF([1]Mapping!$A$1:$A$500,[1]Spreads!$A94,[1]Mapping!E$1:E$500) -> 
A95: General & Admin Expense | B95: 64800-Other - Communication/Technolog | C95: 623561 | D95: 0 | H95: Restricted Cash | I95: =SUMIF([1]Mapping!$A$1:$A$500,[1]Spreads!$A95,[1]Mapping!C$1:C$500) ->  | J95: =SUMIF([1]Mapping!$A$1:$A$500,[1]Spreads!$A95,[1]Mapping!D$1:D$500) ->  | K95: =SUMIF([1]Mapping!$A$1:$A$500,[1]Spreads!$A95,[1]Mapping!E$1:E$500) -> 
A96: General & Admin Expense | B96: 62705-Software & Data - Marketing | C96: 123842 | D96: 0 | H96: Other Investments | I96: =SUMIF([1]Mapping!$A$1:$A$500,[1]Spreads!$A96,[1]Mapping!C$1:C$500) ->  | J96: =SUMIF([1]Mapping!$A$1:$A$500,[1]Spreads!$A96,[1]Mapping!D$1:D$500) ->  | K96: =SUMIF([1]Mapping!$A$1:$A$500,[1]Spreads!$A96,[1]Mapping!E$1:E$500) -> 
A97: General & Admin Expense | B97: 64500-Software Expenses | C97: 1362503 | D97: 0 | H97: Prepaids/Deferreds - LTP | I97: =SUMIF([1]Mapping!$A$1:$A$500,[1]Spreads!$A97,[1]Mapping!C$1:C$500) ->  | J97: =SUMIF([1]Mapping!$A$1:$A$500,[1]Spreads!$A97,[1]Mapping!D$1:D$500) ->  | K97: =SUMIF([1]Mapping!$A$1:$A$500,[1]Spreads!$A97,[1]Mapping!E$1:E$500) -> 
A98: General & Admin Expense | B98: 64400- Website Expenses | C98: 9744 | D98: 0 | H98: Operating Non-Cur Assets | I98: =SUMIF([1]Mapping!$A$1:$A$500,[1]Spreads!$A98,[1]Mapping!C$1:C$500) ->  | J98: =SUMIF([1]Mapping!$A$1:$A$500,[1]Spreads!$A98,[1]Mapping!D$1:D$500) ->  | K98: =SUMIF([1]Mapping!$A$1:$A$500,[1]Spreads!$A98,[1]Mapping!E$1:E$500) -> 
A99: Travel and Entertainment Expense | B99: 68500-Travel & Lodging | C99: 27028 | D99: 0 | H99: Non Current Assets - Taxes | I99: =SUMIF([1]Mapping!$A$1:$A$500,[1]Spreads!$A99,[1]Mapping!C$1:C$500) ->  | J99: =SUMIF([1]Mapping!$A$1:$A$500,[1]Spreads!$A99,[1]Mapping!D$1:D$500) ->  | K99: =SUMIF([1]Mapping!$A$1:$A$500,[1]Spreads!$A99,[1]Mapping!E$1:E$500) -> 
A100: Travel and Entertainment Expense | B100: 68501-Air | C100: 132719 | D100: 0 | H100: Non-Op Non-Cur Assets | I100: =SUMIF([1]Mapping!$A$1:$A$500,[1]Spreads!$A100,[1]Mapping!C$1:C$500) ->  | J100: =SUMIF([1]Mapping!$A$1:$A$500,[1]Spreads!$A100,[1]Mapping!D$1:D$500) ->  | K100: =SUMIF([1]Mapping!$A$1:$A$500,[1]Spreads!$A100,[1]Mapping!E$1:E$500) -> 
A101: Travel and Entertainment Expense | B101: 68502 - Lodging | C101: 314283 | D101: 0 | H101: Intangibles - Goodwill | I101: =SUMIF([1]Mapping!$A$1:$A$500,[1]Spreads!$A101,[1]Mapping!C$1:C$500) ->  | J101: =SUMIF([1]Mapping!$A$1:$A$500,[1]Spreads!$A101,[1]Mapping!D$1:D$500) ->  | K101: =SUMIF([1]Mapping!$A$1:$A$500,[1]Spreads!$A101,[1]Mapping!E$1:E$500) -> 
A102: Travel and Entertainment Expense | B102: 68503-Transportation | C102: 81703 | D102: 0 | H102: Intangibles - Other | I102: =SUMIF([1]Mapping!$A$1:$A$500,[1]Spreads!$A102,[1]Mapping!C$1:C$500) ->  | J102: =SUMIF([1]Mapping!$A$1:$A$500,[1]Spreads!$A102,[1]Mapping!D$1:D$500) ->  | K102: =SUMIF([1]Mapping!$A$1:$A$500,[1]Spreads!$A102,[1]Mapping!E$1:E$500) -> 
A103: Travel and Entertainment Expense | B103: 68504-M&E | C103: 145648 | D103: 0 | H103: Accum Amort & Impairment(-) | I103: =SUMIF([1]Mapping!$A$1:$A$500,[1]Spreads!$A103,[1]Mapping!C$1:C$500) ->  | J103: =SUMIF([1]Mapping!$A$1:$A$500,[1]Spreads!$A103,[1]Mapping!D$1:D$500) ->  | K103: =SUMIF([1]Mapping!$A$1:$A$500,[1]Spreads!$A103,[1]Mapping!E$1:E$500) -> 
A104: Insurance Expense | B104: 69000-Insurance | C104: 1132 | D104: 0 | H104: Total Non-Current Assets | I104: =SUMIF([1]Mapping!$A$1:$A$500,[1]Spreads!$A104,[1]Mapping!C$1:C$500) ->  | J104: =SUMIF([1]Mapping!$A$1:$A$500,[1]Spreads!$A104,[1]Mapping!D$1:D$500) ->  | K104: =SUMIF([1]Mapping!$A$1:$A$500,[1]Spreads!$A104,[1]Mapping!E$1:E$500) -> 
A105: Insurance Expense | B105: 69150-Cyber | C105: 39024 | D105: 0 | H105: Total Assets | I105: =SUM(I78:I103)+SUM(I60:I75) ->  | J105: =SUM(J78:J103)+SUM(J60:J75) -> 
A106: Insurance Expense | B106: 69200 -E&O | C106: 190758 | D106: 0 | H106: Liabilities | I106: =SUMIF([1]Mapping!$A$1:$A$500,[1]Spreads!$A106,[1]Mapping!C$1:C$500) ->  | J106: =SUMIF([1]Mapping!$A$1:$A$500,[1]Spreads!$A106,[1]Mapping!D$1:D$500) ->  | K106: =SUMIF([1]Mapping!$A$1:$A$500,[1]Spreads!$A106,[1]Mapping!E$1:E$500) -> 
A107: Insurance Expense | B107: 69300-D&O | C107: 37666 | D107: 0 | H107: Current Liabilities | I107: =SUMIF([1]Mapping!$A$1:$A$500,[1]Spreads!$A107,[1]Mapping!C$1:C$500) ->  | J107: =SUMIF([1]Mapping!$A$1:$A$500,[1]Spreads!$A107,[1]Mapping!D$1:D$500) ->  | K107: =SUMIF([1]Mapping!$A$1:$A$500,[1]Spreads!$A107,[1]Mapping!E$1:E$500) -> 
A108: Insurance Expense | B108: 69400-Property/Liability | C108: 48547 | D108: 0 | H108: Overdrafts | I108: =SUMIF([1]Mapping!$A$1:$A$500,[1]Spreads!$A108,[1]Mapping!C$1:C$500) ->  | J108: =SUMIF([1]Mapping!$A$1:$A$500,[1]Spreads!$A108,[1]Mapping!D$1:D$500) ->  | K108: =SUMIF([1]Mapping!$A$1:$A$500,[1]Spreads!$A108,[1]Mapping!E$1:E$500) -> 
A109: Professional Fees | B109: 69510-Accounting | C109: 238180 | D109: 0 | H109: Bank Line of Credit | I109: =SUMIF([1]Mapping!$A$1:$A$500,[1]Spreads!$A109,[1]Mapping!C$1:C$500) ->  | J109: =SUMIF([1]Mapping!$A$1:$A$500,[1]Spreads!$A109,[1]Mapping!D$1:D$500) ->  | K109: =SUMIF([1]Mapping!$A$1:$A$500,[1]Spreads!$A109,[1]Mapping!E$1:E$500) -> 
A110: Professional Fees | B110: 69520 - Legal | C110: 1696998 | D110: 0 | H110: Credit Card Payable | I110: =SUMIF([1]Mapping!$A$1:$A$500,[1]Spreads!$A110,[1]Mapping!C$1:C$500) ->  | J110: =SUMIF([1]Mapping!$A$1:$A$500,[1]Spreads!$A110,[1]Mapping!D$1:D$500) ->  | K110: =SUMIF([1]Mapping!$A$1:$A$500,[1]Spreads!$A110,[1]Mapping!E$1:E$500) -> 
A111: Professional Fees | B111: 69521- Legal Reimbursements | C111: -1503742 | D111: 0 | H111: Short Term Notes Payable | I111: =SUMIF([1]Mapping!$A$1:$A$500,[1]Spreads!$A111,[1]Mapping!C$1:C$500) ->  | J111: =SUMIF([1]Mapping!$A$1:$A$500,[1]Spreads!$A111,[1]Mapping!D$1:D$500) ->  | K111: =SUMIF([1]Mapping!$A$1:$A$500,[1]Spreads!$A111,[1]Mapping!E$1:E$500) -> 
A112: Professional Fees | B112: 69522-Corporate Legal | C112: 289490 | D112: 0 | H112: CPLTD | I112: =SUMIF([1]Mapping!$A$1:$A$500,[1]Spreads!$A112,[1]Mapping!C$1:C$500) ->  | J112: =SUMIF([1]Mapping!$A$1:$A$500,[1]Spreads!$A112,[1]Mapping!D$1:D$500) ->  | K112: =SUMIF([1]Mapping!$A$1:$A$500,[1]Spreads!$A112,[1]Mapping!E$1:E$500) -> 
A113: Professional Fees | B113: 69525-Consulting | C113: 10340 | D113: 0 | H113: Govt Remittance Payable - CP | I113: =SUMIF([1]Mapping!$A$1:$A$500,[1]Spreads!$A113,[1]Mapping!C$1:C$500) ->  | J113: =SUMIF([1]Mapping!$A$1:$A$500,[1]Spreads!$A113,[1]Mapping!D$1:D$500) ->  | K113: =SUMIF([1]Mapping!$A$1:$A$500,[1]Spreads!$A113,[1]Mapping!E$1:E$500) -> 
A114: Professional Fees | B114: 69530-Other Professional Services | C114: 30237 | D114: 0 | H114: Credit Card Payables | I114: =SUMIF([1]Mapping!$A$1:$A$500,[1]Spreads!$A114,[1]Mapping!C$1:C$500) ->  | J114: =SUMIF([1]Mapping!$A$1:$A$500,[1]Spreads!$A114,[1]Mapping!D$1:D$500) ->  | K114: =SUMIF([1]Mapping!$A$1:$A$500,[1]Spreads!$A114,[1]Mapping!E$1:E$500) -> 
A115: General & Admin Expense | B115: 68100-Bank Service Charges | C115: 45482 | D115: 0 | H115: Long Term Debt - Capital Leases (CP) | I115: =SUMIF([1]Mapping!$A$1:$A$500,[1]Spreads!$A115,[1]Mapping!C$1:C$500) ->  | J115: =SUMIF([1]Mapping!$A$1:$A$500,[1]Spreads!$A115,[1]Mapping!D$1:D$500) ->  | K115: =SUMIF([1]Mapping!$A$1:$A$500,[1]Spreads!$A115,[1]Mapping!E$1:E$500) -> 
A116: General & Admin Expense | B116: 68120-Charitable Donations | C116: 5520 | D116: 0 | H116: Finance Leases - CP | I116: =SUMIF([1]Mapping!$A$1:$A$500,[1]Spreads!$A116,[1]Mapping!C$1:C$500) ->  | J116: =SUMIF([1]Mapping!$A$1:$A$500,[1]Spreads!$A116,[1]Mapping!D$1:D$500) ->  | K116: =SUMIF([1]Mapping!$A$1:$A$500,[1]Spreads!$A116,[1]Mapping!E$1:E$500) -> 
A117: General & Admin Expense | B117: 68135-Dues & Subscriptions | C117: 30736 | D117: 0 | H117: Operating Leases - CP | I117: =SUMIF([1]Mapping!$A$1:$A$500,[1]Spreads!$A117,[1]Mapping!C$1:C$500) ->  | J117: =SUMIF([1]Mapping!$A$1:$A$500,[1]Spreads!$A117,[1]Mapping!D$1:D$500) ->  | K117: =SUMIF([1]Mapping!$A$1:$A$500,[1]Spreads!$A117,[1]Mapping!E$1:E$500) -> 
A118: General & Admin Expense | B118: 68160-Licenses & Permits | C118: 81414 | D118: 0 | H118: Accounts Payable - Trade | I118: =SUMIF([1]Mapping!$A$1:$A$500,[1]Spreads!$A118,[1]Mapping!C$1:C$500) ->  | J118: =SUMIF([1]Mapping!$A$1:$A$500,[1]Spreads!$A118,[1]Mapping!D$1:D$500) ->  | K118: =SUMIF([1]Mapping!$A$1:$A$500,[1]Spreads!$A118,[1]Mapping!E$1:E$500) -> 
A119: General & Admin Expense | B119: 61554-Recruiting | C119: 435553 | D119: 0 | H119: Accrued Personnel Payable | I119: =SUMIF([1]Mapping!$A$1:$A$500,[1]Spreads!$A119,[1]Mapping!C$1:C$500) ->  | J119: =SUMIF([1]Mapping!$A$1:$A$500,[1]Spreads!$A119,[1]Mapping!D$1:D$500) ->  | K119: =SUMIF([1]Mapping!$A$1:$A$500,[1]Spreads!$A119,[1]Mapping!E$1:E$500) -> 
A120: Travel and Entertainment Expense | B120: 61560-Recruiting - Travel | C120: 64203 | D120: 0 | H120: Other Accruals | I120: =SUMIF([1]Mapping!$A$1:$A$500,[1]Spreads!$A120,[1]Mapping!C$1:C$500) ->  | J120: =SUMIF([1]Mapping!$A$1:$A$500,[1]Spreads!$A120,[1]Mapping!D$1:D$500) ->  | K120: =SUMIF([1]Mapping!$A$1:$A$500,[1]Spreads!$A120,[1]Mapping!E$1:E$500) -> 
A121: General & Admin Expense | B121: 61570-Recruiting - Senior Recruiting | C121: 5030 | D121: 0 | H121: Current Taxes Payable | I121: =SUMIF([1]Mapping!$A$1:$A$500,[1]Spreads!$A121,[1]Mapping!C$1:C$500) ->  | J121: =SUMIF([1]Mapping!$A$1:$A$500,[1]Spreads!$A121,[1]Mapping!D$1:D$500) ->  | K121: =SUMIF([1]Mapping!$A$1:$A$500,[1]Spreads!$A121,[1]Mapping!E$1:E$500) -> 
A122: General & Admin Expense | B122: 99999-Suspense Account | C122: 4674 | D122: 0 | H122: Operating Current Liabilities | I122: =SUMIF([1]Mapping!$A$1:$A$500,[1]Spreads!$A122,[1]Mapping!C$1:C$500) ->  | J122: =SUMIF([1]Mapping!$A$1:$A$500,[1]Spreads!$A122,[1]Mapping!D$1:D$500) ->  | K122: =SUMIF([1]Mapping!$A$1:$A$500,[1]Spreads!$A122,[1]Mapping!E$1:E$500) -> 
B123: Total Operating Expenses | C123: 19637757 | D123: 0 | H123: Non-Op Current Liabs | I123: =SUMIF([1]Mapping!$A$1:$A$500,[1]Spreads!$A123,[1]Mapping!C$1:C$500) ->  | J123: =SUMIF([1]Mapping!$A$1:$A$500,[1]Spreads!$A123,[1]Mapping!D$1:D$500) ->  | K123: =SUMIF([1]Mapping!$A$1:$A$500,[1]Spreads!$A123,[1]Mapping!E$1:E$500) -> 
A124: Depreciation | B124: Depreciation and Amortization Expense | C124: 0 | D124: 492455 | H124: Total Current Liabilities | I124: =SUMIF([1]Mapping!$A$1:$A$500,[1]Spreads!$A124,[1]Mapping!C$1:C$500) ->  | J124: =SUMIF([1]Mapping!$A$1:$A$500,[1]Spreads!$A124,[1]Mapping!D$1:D$500) ->  | K124: =SUMIF([1]Mapping!$A$1:$A$500,[1]Spreads!$A124,[1]Mapping!E$1:E$500) -> 
A125: Depreciation | B125: 72000 - Depreciation | C125: 1362127 | D125: 0 | H125: Non-Current Liabilities | I125: =SUMIF([1]Mapping!$A$1:$A$500,[1]Spreads!$A125,[1]Mapping!C$1:C$500) ->  | J125: =SUMIF([1]Mapping!$A$1:$A$500,[1]Spreads!$A125,[1]Mapping!D$1:D$500) ->  | K125: =SUMIF([1]Mapping!$A$1:$A$500,[1]Spreads!$A125,[1]Mapping!E$1:E$500) -> 
A126: Amortization | B126: 71000 - Amortization Expense | C126: 453890 | D126: 0 | H126: Long Term Debt | I126: =SUMIF([1]Mapping!$A$1:$A$500,[1]Spreads!$A126,[1]Mapping!C$1:C$500) ->  | J126: =SUMIF([1]Mapping!$A$1:$A$500,[1]Spreads!$A126,[1]Mapping!D$1:D$500) ->  | K126: =SUMIF([1]Mapping!$A$1:$A$500,[1]Spreads!$A126,[1]Mapping!E$1:E$500) -> 
B127: Total Depreciation and Amortization Expense | C127: 1816016 | D127: 0 | H127: Govt Remittance Payable - LTP | I127: =SUMIF([1]Mapping!$A$1:$A$500,[1]Spreads!$A127,[1]Mapping!C$1:C$500) ->  | J127: =SUMIF([1]Mapping!$A$1:$A$500,[1]Spreads!$A127,[1]Mapping!D$1:D$500) ->  | K127: =SUMIF([1]Mapping!$A$1:$A$500,[1]Spreads!$A127,[1]Mapping!E$1:E$500) -> 
A128: Other Income | B128: Other Income (Expense) | C128: 0 | D128: 91628 | H128: Billings in Excess of Costs | I128: =SUMIF([1]Mapping!$A$1:$A$500,[1]Spreads!$A128,[1]Mapping!C$1:C$500) ->  | J128: =SUMIF([1]Mapping!$A$1:$A$500,[1]Spreads!$A128,[1]Mapping!D$1:D$500) ->  | K128: =SUMIF([1]Mapping!$A$1:$A$500,[1]Spreads!$A128,[1]Mapping!E$1:E$500) -> 
A129: Other Income | B129: 82000-Other Income | C129: 8478 | D129: 0 | H129: LT Capital Lease Obligations | I129: =SUMIF([1]Mapping!$A$1:$A$500,[1]Spreads!$A129,[1]Mapping!C$1:C$500) ->  | J129: =SUMIF([1]Mapping!$A$1:$A$500,[1]Spreads!$A129,[1]Mapping!D$1:D$500) ->  | K129: =SUMIF([1]Mapping!$A$1:$A$500,[1]Spreads!$A129,[1]Mapping!E$1:E$500) -> 
A130: Interest Income | B130: 83000-Interest Income | C130: 751382 | D130: 0 | H130: Finance Leases - LT | I130: =SUMIF([1]Mapping!$A$1:$A$500,[1]Spreads!$A130,[1]Mapping!C$1:C$500) ->  | J130: =SUMIF([1]Mapping!$A$1:$A$500,[1]Spreads!$A130,[1]Mapping!D$1:D$500) ->  | K130: =SUMIF([1]Mapping!$A$1:$A$500,[1]Spreads!$A130,[1]Mapping!E$1:E$500) -> 
A131: Other Income | B131: 86000-Investment Income - IRR | C131: 324237 | D131: 0 | H131: Operating Leases - LT | I131: =SUMIF([1]Mapping!$A$1:$A$500,[1]Spreads!$A131,[1]Mapping!C$1:C$500) ->  | J131: =SUMIF([1]Mapping!$A$1:$A$500,[1]Spreads!$A131,[1]Mapping!D$1:D$500) ->  | K131: =SUMIF([1]Mapping!$A$1:$A$500,[1]Spreads!$A131,[1]Mapping!E$1:E$500) -> 
A132: Interest Expense (-) | B132: 70000-Interest Expense | C132: -73655 | D132: 0 | H132: Sub Debt | I132: =SUMIF([1]Mapping!$A$1:$A$500,[1]Spreads!$A132,[1]Mapping!C$1:C$500) ->  | J132: =SUMIF([1]Mapping!$A$1:$A$500,[1]Spreads!$A132,[1]Mapping!D$1:D$500) ->  | K132: =SUMIF([1]Mapping!$A$1:$A$500,[1]Spreads!$A132,[1]Mapping!E$1:E$500) -> 
A133: Other Expense (-) | B133: 91000-Penalties | C133: -3585 | D133: 0 | H133: Loans from Officers/Stkhldrs - LTP | I133: =SUMIF([1]Mapping!$A$1:$A$500,[1]Spreads!$A133,[1]Mapping!C$1:C$500) ->  | J133: =SUMIF([1]Mapping!$A$1:$A$500,[1]Spreads!$A133,[1]Mapping!D$1:D$500) ->  | K133: =SUMIF([1]Mapping!$A$1:$A$500,[1]Spreads!$A133,[1]Mapping!E$1:E$500) -> 
A134: Current Income Tax | B134: 92000-Federal Income Tax | C134: 745000 | D134: 0 | H134: Loans from Related Co - LTP | I134: =SUMIF([1]Mapping!$A$1:$A$500,[1]Spreads!$A134,[1]Mapping!C$1:C$500) ->  | J134: =SUMIF([1]Mapping!$A$1:$A$500,[1]Spreads!$A134,[1]Mapping!D$1:D$500) ->  | K134: =SUMIF([1]Mapping!$A$1:$A$500,[1]Spreads!$A134,[1]Mapping!E$1:E$500) -> 
A135: Current Income Tax | B135: 93000-State Income Tax | C135: 305170 | D135: 0 | H135: Deferred Revenue | I135: =SUMIF([1]Mapping!$A$1:$A$500,[1]Spreads!$A135,[1]Mapping!C$1:C$500) ->  | J135: =SUMIF([1]Mapping!$A$1:$A$500,[1]Spreads!$A135,[1]Mapping!D$1:D$500) ->  | K135: =SUMIF([1]Mapping!$A$1:$A$500,[1]Spreads!$A135,[1]Mapping!E$1:E$500) -> 
B136: Total Net Income (Loss) | C136: 3191811 | D136: -1301746 | H136: Operating Non-Cur Liabs | I136: =SUMIF([1]Mapping!$A$1:$A$500,[1]Spreads!$A136,[1]Mapping!C$1:C$500) ->  | J136: =SUMIF([1]Mapping!$A$1:$A$500,[1]Spreads!$A136,[1]Mapping!D$1:D$500) ->  | K136: =SUMIF([1]Mapping!$A$1:$A$500,[1]Spreads!$A136,[1]Mapping!E$1:E$500) -> 
B137: Adjusted EBITDA | C137: 5375377 | D137: -900919 | H137: Non-Current Taxes Payable | I137: =SUMIF([1]Mapping!$A$1:$A$500,[1]Spreads!$A137,[1]Mapping!C$1:C$500) ->  | J137: =SUMIF([1]Mapping!$A$1:$A$500,[1]Spreads!$A137,[1]Mapping!D$1:D$500) ->  | K137: =SUMIF([1]Mapping!$A$1:$A$500,[1]Spreads!$A137,[1]Mapping!E$1:E$500) -> 
A138: Balance Sheet | H138: Total Non-Current Liabilities | I138: =SUMIF([1]Mapping!$A$1:$A$500,[1]Spreads!$A138,[1]Mapping!C$1:C$500) ->  | J138: =SUMIF([1]Mapping!$A$1:$A$500,[1]Spreads!$A138,[1]Mapping!D$1:D$500) ->  | K138: =SUMIF([1]Mapping!$A$1:$A$500,[1]Spreads!$A138,[1]Mapping!E$1:E$500) -> 
A139: Cash | B139: Cash and Cash Equivalents | C139: 0 | D139: 7582307 | H139: Total Liabilities | I139: =SUMIF([1]Mapping!$A$1:$A$500,[1]Spreads!$A139,[1]Mapping!C$1:C$500) ->  | J139: =SUMIF([1]Mapping!$A$1:$A$500,[1]Spreads!$A139,[1]Mapping!D$1:D$500) ->  | K139: =SUMIF([1]Mapping!$A$1:$A$500,[1]Spreads!$A139,[1]Mapping!E$1:E$500) -> 
A140: Cash | B140: 10001-Wells Fargo Checking #7720 | C140: 1250 | D140: 0 | H140: Equity | I140: =SUMIF([1]Mapping!$A$1:$A$500,[1]Spreads!$A140,[1]Mapping!C$1:C$500) ->  | J140: =SUMIF([1]Mapping!$A$1:$A$500,[1]Spreads!$A140,[1]Mapping!D$1:D$500) ->  | K140: =SUMIF([1]Mapping!$A$1:$A$500,[1]Spreads!$A140,[1]Mapping!E$1:E$500) -> 
A141: Cash | B141: 10102- Chase - MREIS | C141: 5000 | D141: 0 | H141: Preferred Stock | I141: =SUMIF([1]Mapping!$A$1:$A$500,[1]Spreads!$A141,[1]Mapping!C$1:C$500) ->  | J141: =SUMIF([1]Mapping!$A$1:$A$500,[1]Spreads!$A141,[1]Mapping!D$1:D$500) ->  | K141: =SUMIF([1]Mapping!$A$1:$A$500,[1]Spreads!$A141,[1]Mapping!E$1:E$500) -> 
A142: Cash | B142: 10104-Valley National - MREIS | C142: 2000 | D142: 0 | H142: Common Stock | I142: =SUMIF([1]Mapping!$A$1:$A$500,[1]Spreads!$A142,[1]Mapping!C$1:C$500) ->  | J142: =SUMIF([1]Mapping!$A$1:$A$500,[1]Spreads!$A142,[1]Mapping!D$1:D$500) ->  | K142: =SUMIF([1]Mapping!$A$1:$A$500,[1]Spreads!$A142,[1]Mapping!E$1:E$500) -> 
A143: Cash | B143: 10105-JPMorgan - MREIS-OPER | C143: 7071205 | D143: 0 | H143: Paid In Capital | I143: =SUMIF([1]Mapping!$A$1:$A$500,[1]Spreads!$A143,[1]Mapping!C$1:C$500) ->  | J143: =SUMIF([1]Mapping!$A$1:$A$500,[1]Spreads!$A143,[1]Mapping!D$1:D$500) ->  | K143: =SUMIF([1]Mapping!$A$1:$A$500,[1]Spreads!$A143,[1]Mapping!E$1:E$500) -> 
A144: Cash | B144: 10106-JPMorgan - MREIS - LEASING | C144: 603304 | D144: 0 | H144: Other Equity | I144: =SUMIF([1]Mapping!$A$1:$A$500,[1]Spreads!$A144,[1]Mapping!C$1:C$500) ->  | J144: =SUMIF([1]Mapping!$A$1:$A$500,[1]Spreads!$A144,[1]Mapping!D$1:D$500) ->  | K144: =SUMIF([1]Mapping!$A$1:$A$500,[1]Spreads!$A144,[1]Mapping!E$1:E$500) -> 
A145: Cash | B145: 10160 - FirstBank - Operating | C145: 761404 | D145: 0 | H145: Subordinated Debt-Equity | I145: =SUMIF([1]Mapping!$A$1:$A$500,[1]Spreads!$A145,[1]Mapping!C$1:C$500) ->  | J145: =SUMIF([1]Mapping!$A$1:$A$500,[1]Spreads!$A145,[1]Mapping!D$1:D$500) ->  | K145: =SUMIF([1]Mapping!$A$1:$A$500,[1]Spreads!$A145,[1]Mapping!E$1:E$500) -> 
A146: Cash | B146: 10166-FirstBank - Leasing | C146: 751782 | D146: 0 | H146: Retained Earnings and Adj. | I146: =SUMIF([1]Mapping!$A$1:$A$500,[1]Spreads!$A146,[1]Mapping!C$1:C$500) ->  | J146: =SUMIF([1]Mapping!$A$1:$A$500,[1]Spreads!$A146,[1]Mapping!D$1:D$500) ->  | K146: =SUMIF([1]Mapping!$A$1:$A$500,[1]Spreads!$A146,[1]Mapping!E$1:E$500) -> 
A147: Cash | B147: 10175-FirstBank - HY Checking - 7140 | C147: 7458 | D147: 0 | H147: Historical Adj to RE (Deprecated) | I147: =SUMIF([1]Mapping!$A$1:$A$500,[1]Spreads!$A147,[1]Mapping!C$1:C$500) ->  | J147: =SUMIF([1]Mapping!$A$1:$A$500,[1]Spreads!$A147,[1]Mapping!D$1:D$500) ->  | K147: =SUMIF([1]Mapping!$A$1:$A$500,[1]Spreads!$A147,[1]Mapping!E$1:E$500) -> 
A148: Cash | B148: 10180 Oakworth MREIS-MM | C148: 332 | D148: 0 | H148: Dividends | I148: =SUMIF([1]Mapping!$A$1:$A$500,[1]Spreads!$A148,[1]Mapping!C$1:C$500) ->  | J148: =SUMIF([1]Mapping!$A$1:$A$500,[1]Spreads!$A148,[1]Mapping!D$1:D$500) ->  | K148: =SUMIF([1]Mapping!$A$1:$A$500,[1]Spreads!$A148,[1]Mapping!E$1:E$500) -> 
A149: Cash | B149: 10181Oakworth - MREIS - OPER | C149: 32470 | D149: 0 | H149: Withdrawals | I149: =SUMIF([1]Mapping!$A$1:$A$500,[1]Spreads!$A149,[1]Mapping!C$1:C$500) ->  | J149: =SUMIF([1]Mapping!$A$1:$A$500,[1]Spreads!$A149,[1]Mapping!D$1:D$500) ->  | K149: =SUMIF([1]Mapping!$A$1:$A$500,[1]Spreads!$A149,[1]Mapping!E$1:E$500) -> 
A150: Cash | B150: 10183-Oakworth - MREIS-ICS | C150: 4117644 | D150: 0 | H150: Prior Period Adjustments | I150: =SUMIF([1]Mapping!$A$1:$A$500,[1]Spreads!$A150,[1]Mapping!C$1:C$500) ->  | J150: =SUMIF([1]Mapping!$A$1:$A$500,[1]Spreads!$A150,[1]Mapping!D$1:D$500) ->  | K150: =SUMIF([1]Mapping!$A$1:$A$500,[1]Spreads!$A150,[1]Mapping!E$1:E$500) -> 
A151: Cash | B151: 10500 - Wells Fargo #5946 | C151: 100 | D151: 0 | H151: Adj to Retained Earnings | I151: =SUMIF([1]Mapping!$A$1:$A$500,[1]Spreads!$A151,[1]Mapping!C$1:C$500) ->  | J151: =SUMIF([1]Mapping!$A$1:$A$500,[1]Spreads!$A151,[1]Mapping!D$1:D$500) ->  | K151: =SUMIF([1]Mapping!$A$1:$A$500,[1]Spreads!$A151,[1]Mapping!E$1:E$500) -> 
A152: Cash | B152: 10600-Wells Fargo #5953 | C152: 100 | D152: 0 | H152: Retained Earnings | I152: =SUMIF([1]Mapping!$A$1:$A$500,[1]Spreads!$A152,[1]Mapping!C$1:C$500) ->  | J152: =SUMIF([1]Mapping!$A$1:$A$500,[1]Spreads!$A152,[1]Mapping!D$1:D$500) ->  | K152: =SUMIF([1]Mapping!$A$1:$A$500,[1]Spreads!$A152,[1]Mapping!E$1:E$500) -> 
A153: Cash | B153: 10700-Wells Fargo #2567 | C153: 517 | D153: 0 | H153: Total Retained Earnings and Adj. | I153: =SUMIF([1]Mapping!$A$1:$A$500,[1]Spreads!$A153,[1]Mapping!C$1:C$500) ->  | J153: =SUMIF([1]Mapping!$A$1:$A$500,[1]Spreads!$A153,[1]Mapping!D$1:D$500) ->  | K153: =SUMIF([1]Mapping!$A$1:$A$500,[1]Spreads!$A153,[1]Mapping!E$1:E$500) -> 
A154: Cash | B154: 10800-US Bank #0765 | C154: 1005 | D154: 0 | H154: Other Comprehensive Income | I154: =SUMIF([1]Mapping!$A$1:$A$500,[1]Spreads!$A154,[1]Mapping!C$1:C$500) ->  | J154: =SUMIF([1]Mapping!$A$1:$A$500,[1]Spreads!$A154,[1]Mapping!D$1:D$500) ->  | K154: =SUMIF([1]Mapping!$A$1:$A$500,[1]Spreads!$A154,[1]Mapping!E$1:E$500) -> 
A155: Cash | B155: 10850-Wells Fargo #3914 | C155: 500 | D155: 0 | H155: Unreal Gain/(Loss) on Mark Sec | I155: =SUMIF([1]Mapping!$A$1:$A$500,[1]Spreads!$A155,[1]Mapping!C$1:C$500) ->  | J155: =SUMIF([1]Mapping!$A$1:$A$500,[1]Spreads!$A155,[1]Mapping!D$1:D$500) ->  | K155: =SUMIF([1]Mapping!$A$1:$A$500,[1]Spreads!$A155,[1]Mapping!E$1:E$500) -> 
A156: Cash | B156: 10860-Bank of America - OH RETA | C156: 5884 | D156: 0 | H156: Other Income/Expense | I156: =SUMIF([1]Mapping!$A$1:$A$500,[1]Spreads!$A156,[1]Mapping!C$1:C$500) ->  | J156: =SUMIF([1]Mapping!$A$1:$A$500,[1]Spreads!$A156,[1]Mapping!D$1:D$500) ->  | K156: =SUMIF([1]Mapping!$A$1:$A$500,[1]Spreads!$A156,[1]Mapping!E$1:E$500) -> 
A157: Cash | B157: 19000-Undeposited Funds | C157: 75825 | D157: 0 | H157: Total Other Comprehensive Income | I157: =SUMIF([1]Mapping!$A$1:$A$500,[1]Spreads!$A157,[1]Mapping!C$1:C$500) ->  | J157: =SUMIF([1]Mapping!$A$1:$A$500,[1]Spreads!$A157,[1]Mapping!D$1:D$500) ->  | K157: =SUMIF([1]Mapping!$A$1:$A$500,[1]Spreads!$A157,[1]Mapping!E$1:E$500) -> 
B158: Total Cash and Cash Equivalents | C158: 13437781 | D158: 0 | H158: Treasury | I158: =SUMIF([1]Mapping!$A$1:$A$500,[1]Spreads!$A158,[1]Mapping!C$1:C$500) ->  | J158: =SUMIF([1]Mapping!$A$1:$A$500,[1]Spreads!$A158,[1]Mapping!D$1:D$500) ->  | K158: =SUMIF([1]Mapping!$A$1:$A$500,[1]Spreads!$A158,[1]Mapping!E$1:E$500) -> 
A159: Accts/Notes Rec-Trade | B159: Accounts Receivable, Net | C159: 6767475 | D159: 7770840 | H159: Total Equity | I159: =SUMIF([1]Mapping!$A$1:$A$500,[1]Spreads!$A159,[1]Mapping!C$1:C$500) ->  | J159: =SUMIF([1]Mapping!$A$1:$A$500,[1]Spreads!$A159,[1]Mapping!D$1:D$500) ->  | K159: =SUMIF([1]Mapping!$A$1:$A$500,[1]Spreads!$A159,[1]Mapping!E$1:E$500) -> 
A160: Prepaids/Deferreds - CP | B160: Prepaid Expenses | C160: 2173999 | D160: 6722299 | H160: Total Liabilities and Equity | I160: =I159+SUM(I126:I137)+SUM(I108:I123) ->  | J160: =J159+SUM(J126:J137)+SUM(J108:J123) -> 
A161: Loans to Related Co - CP | B161: Intercompany Receivable | C161: 4901 | D161: 4901 | H161: Check | I161: =I105-I160 ->  | J161: =J105-J160 -> 
A162: Operating Current Assets | B162: Other Current Assets | C162: 0 | D162: 8350413
A163: Bad Debt Reserve | B163: 11100-Allowance for Doubtful Accounts | C163: -61469 | D163: 0
A164: Operating Current Assets | B164: 12400-Other Receivables | C164: 5567 | D164: 0
A165: Operating Current Assets | B165: 12451 Headcount | C165: 32332 | D165: 0
A166: Operating Current Assets | B166: 12452-CAP | C166: 15000 | D166: 0
A167: Operating Current Assets | B167: 12453-Events | C167: -31134 | D167: 0
A168: Operating Current Assets | B168: 12454-Marketing | C168: 2234 | D168: 0
A169: Operating Current Assets | B169: 12455-Legal and Insurance | C169: 440730 | D169: 0
A170: Operating Current Assets | B170: 12460- Other | C170: 507818 | D170: 0
A171: Operating Current Assets | B171: 12550 Loans Receivable | C171: 4782678 | D171: 0
A172: Operating Current Assets | B172: 12565-CAP | C172: 181452 | D172: 0
A173: Operating Current Assets | B173: 12571- SAP | C173: 722011 | D173: 0
A174: Operating Current Assets | B174: 12572-MCM Headcount | C174: 38007 | D174: 0
A175: Operating Current Assets | B175: 12573-MAS Headcount | C175: 1538 | D175: 0
A176: Operating Current Assets | B176: 12575-Reimbursements | C176: -204304 | D176: 0
A177: Operating Current Assets | B177: 12576- Backstop Support | C177: 466657 | D177: 0
A178: Loans to Related Co - LTP | B178: 12600-Loan to Shareholders | C178: 2059703 | D178: 0
A179: Machinery & Equipment | B179: Fixed Assets, Net | C179: 11232149 | D179: 11320874
A180: Intangibles - Other | B180: Intangible Assets, Net | C180: 23890 | D180: 22821
A181: Other Investments | B181: Other Assets | C181: 0 | D181: 4548713
A182: Prepaids/Deferreds - LTP | B182: 15000- Security Deposit | C182: 943887 | D182: 0
A183: Prepaids/Deferreds - LTP | B183: 15001 Other Deposits | C183: 379446 | D183: 0
A184: Accts/Notes Rec-Long Term | B184: 12500-Employee Advances | C184: 27443 | D184: 0
A185: Operating Current Assets | B185: 12700-Debt Issuance Costs | C185: 6564 | D185: 0
A186: Investment in Subsidiaries | B186: 16200 Investment in Ironside | C186: 1412594 | D186: 0
A187: Other Investments | B187: 16300-Investment in Crexi | C187: 1500499 | D187: 0
B188: Total Assets | C188: 46869449 | D188: 46323168
A189: Accounts Payable - Trade | B189: Accounts Payable | C189: 6540642 | D189: 3868485
A190: Other Accruals | B190: Accrued Liabilities | C190: 0 | D190: 8693315
A191: Accrued Personnel Payable | B191: 23000 - Accrued Expenses | C191: 21509 | D191: 0
A192: Accrued Personnel Payable | B192: 23001-Accrued Commissions - Leasing | C192: 2723203 | D192: 0
A193: Other Accruals | B193: 23003 Accrued Professional Fees | C193: 213862 | D193: 0
A194: Accrued Personnel Payable | B194: 23004-Accrued Bonuses | C194: 447327 | D194: 0
A195: Accrued Personnel Payable | B195: 23005 - Accrued Payroll | C195: 564567 | D195: 0
A196: Accrued Personnel Payable | B196: 23006- Accrued Vacation | C196: 429243 | D196: 0
A197: Accrued Personnel Payable | B197: 23007- Accrued Referral Fees | C197: 3614 | D197: 0
A198: Current Taxes Payable | B198: 23008- Accrued Taxes | C198: 412573 | D198: 0
A199: Accrued Personnel Payable | B199: 23009 Accrued Co-Broker Commission | C199: 1374460 | D199: 0
A200: Accrued Personnel Payable | B200: 23011-Accrued Commissions - DSCP | C200: 1228554 | D200: 0
... 15 more rows

Sheet RiskNotching
A1: Reporting Period and Period Length | E1: Client Name | G1: =Analysis!A1 -> Rikkel Corp | K1: Model Risk Rating | M1: C | W1: Password: | Y1: risk
A2: =Analysis!B3 -> 2023-12-31 | B2: =Analysis!B3 -> 2023-12-31 | C2: =Analysis!C3 -> 2024-12-31 | D2: =Analysis!D3 -> 2025-03-31 | G2: BB+ | H2: 1 | I2: BB | J2: 2 | K2: BB- | L2: 2 | M2: B+ | N2: 3 | O2: B | P2: 4 | Q2: B- | R2: 5 | S2: C | T2: SS | V2: Risk Grading | AA2: Grade Scaling | AD2: Divvy Rating | AE2: RiskCalc Rating | AG2: Rating Definition | AH2: Probability of Default | AI2: % (up to) of Monthly Revenue | AP2: FYE
A3: 12 | B3: 12 | C3: 12 | E3: Interest Coverage | Y3: Weighting | AA3: Score | AB3: Divvy | AC3: Moodys | AD3: A | AE3: A | AF3: 12 | AG3: Superior Credit Quality | AH3: 0.0004 | AI3: 0.7 | AP3: YTD
B4: =Analysis!B15/Analysis!B34 -> 2.389859155 | C4: =IF(C22="",Analysis!C15/Analysis!C34,C22) -> 2.278376139 | D4: =Analysis!D15/Analysis!D34 -> 4.417647059 | E4: EBITDA / Int Expense | G4: > | H4: 10.001 | I4: 10 | J4: 5 | K4: 10 | L4: 5 | M4: 4.99 | N4: 3 | O4: 2.99 | P4: 2 | Q4: 1.99 | R4: 1 | S4: < | T4: 0.99 | V4: EBITDA / Int Expense | W4: =IF(Y4=0,_xlfn.IFS(C4>H4,$G$2,C4>=J4,$I$2,C4>=L4,$K$2,C4>=N4,$M$2,C4>=P4,$O$2,C4>=R4,$Q$2,C4<=T4,$S$2),VLOOKUP(X4,$AA$3:$AC$14,2,0)) -> B | X4: =IF(Y4=0,VLOOKUP(W4,$AD$3:$AH$13,3,0),VLOOKUP(AQ4,$AD$6:$AH$17,3,0)+Y4) -> 4 | Y4: 0 | AA4: =AF3 -> 12 | AB4: =AD3 -> A | AC4: =AE3 -> A | AD4: BBB+ | AE4: Baa1 | AF4: 11 | AG4: Investment Grade Quality | AH4: 0.0029 | AI4: 0.6 | AP4: TTM | AQ4: =_xlfn.IFS(C4>H4,$G$2,C4>=J4,$I$2,C4>=L4,$K$2,C4>=N4,$M$2,C4>=P4,$O$2,C4>=R4,$Q$2,C4<T4,$S$2) -> B
B5: =Analysis!B38/Analysis!B34 -> 2.389859155 | C5: =IF(C23="",Analysis!C38/Analysis!C34,C23) -> 2.256006628 | D5: =Analysis!D38/Analysis!D34 -> 4.258823529 | E5: EBIT / Interest Expense | G5: > | H5: 8.001 | I5: 8 | J5: 4 | K5: 8 | L5: 4 | M5: 3.99 | N5: 2 | O5: 1.99 | P5: 1 | Q5: 0.99 | R5: 0 | S5: < | T5: 1e-05 | V5: EBIT / Interest Expense | W5: =IF(Y5=0,_xlfn.IFS(C5>H5,$G$2,C5>=J5,$I$2,C5>=L5,$K$2,C5>=N5,$M$2,C5>=P5,$O$2,C5>=R5,$Q$2,C5<T5,$S$2),VLOOKUP(X5,$AA$3:$AC$14,2,0)) -> B+ | X5: =IF(Y5=0,VLOOKUP(W5,$AD$3:$AH$13,3,0),VLOOKUP(AQ5,$AD$6:$AH$17,3,0)+Y5) -> 5 | Y5: 0 | AA5: =AF4 -> 11 | AB5: =AD4 -> BBB+ | AC5: =AE4 -> Baa1 | AD5: BBB | AE5: Baa2 | AF5: 10 | AG5: Investment Grade Quality | AH5: 0.0034 | AI5: 0.6 | AJ5: 0.45 | AQ5: =_xlfn.IFS(C5>H5,$G$2,C5>=J5,$I$2,C5>=L5,$K$2,C5>=N5,$M$2,C5>=P5,$O$2,C5>=R5,$Q$2,C5<T5,$S$2) -> B+
B6: =Analysis!B15/(Analysis!B34+Analysis!B26+Analysis!B29+Analysis!B25+Analysis!C25) -> 1.864615385 | C6: =IF(C24="",Analysis!C15/(Analysis!C34+Analysis!C26+Analysis!C29),C24) -> 2.278376139 | D6: =Analysis!D15/(Analysis!D34+Analysis!D26+Analysis!D29+Analysis!D25) -> 4.417647059 | E6: EBITDA/CPLTD + Int exp | G6: > | H6: 3.5001 | I6: 3.5 | J6: 2.5 | K6: 3.5 | L6: 2.5 | M6: 2.49 | N6: 1.75 | O6: 1.74 | P6: 1.25 | Q6: 1.24 | R6: 1 | S6: < | T6: 0.99 | V6: EBITDA/CPLTD + Int exp | W6: =IF(Y6=0,_xlfn.IFS(C6>H6,$G$2,C6>=J6,$I$2,C6>=L6,$K$2,C6>=N6,$M$2,C6>=P6,$O$2,C6>=R6,$Q$2,C6<=T6,$S$2),VLOOKUP(X6,$AA$3:$AC$14,2,0)) ->  | X6: =IF(Y6=0,VLOOKUP(W6,$AD$3:$AH$13,3,0),VLOOKUP(AQ6,$AD$6:$AH$17,3,0)+Y6) -> 1 | Y6: -4 | AA6: =AF5 -> 10 | AB6: =AD5 -> BBB | AC6: =AE5 -> Baa2 | AD6: BBB- | AE6: Baa3 | AF6: 9 | AG6: Investment Grade Quality | AH6: 0.0045 | AI6: 0.6 | AJ6: 0.45 | AQ6: =_xlfn.IFS(C6>H6,$G$2,C6>=J6,$I$2,C6>=L6,$K$2,C6>=N6,$M$2,C6>=P6,$O$2,C6>=R6,$Q$2,C6<T6,$S$2) -> B+
E7: Profitability and Scale | AA7: 9 | AB7: BBB- | AC7: Baa3 | AD7: BB+ | AE7: Ba1 | AF7: 8 | AG7: Speculative Quality | AH7: 0.0063 | AI7: 0.5 | AJ7: 0.45
B8: =IF(Analysis!G2="YES",Analysis!B4/1000,Analysis!B4/1000000) -> 99.228 | C8: =IF(Analysis!G2="YES",IF(C26="",Analysis!C4/1000,C26),IF(C26="",Analysis!C4/1000000,C26)) -> 102.503 | D8: =IF(Analysis!G2="YES",Analysis!D4/1000,Analysis!D4/1000000) -> 22.089 | E8: Revenue (USD MM) | G8: > | H8: 50.001 | I8: 50 | J8: 30 | K8: 50 | L8: 30 | M8: 29.99 | N8: 20 | O8: 19.99 | P8: 12.5 | Q8: 12.49 | R8: 5 | S8: < | T8: 4.99 | V8: Revenue (USD MM) | W8: =IF(Y8=0,_xlfn.IFS(C8>H8,$G$2,C8>=J8,$I$2,C8>=L8,$K$2,C8>=N8,$M$2,C8>=P8,$O$2,C8>=R8,$Q$2,C8<=T8,$S$2),VLOOKUP(X8,$AA$3:$AC$14,2,0)) -> B | X8: =IF(Y8=0,VLOOKUP(W8,$AD$3:$AH$13,3,0),VLOOKUP(AQ8,$AD$6:$AH$17,3,0)+Y8) -> 4 | Y8: -4 | AA8: 8 | AB8: BB+ | AC8: Ba1 | AD8: BB | AE8: Ba2 | AF8: 7 | AG8: Speculative Quality | AH8: 0.0113 | AI8: 0.45 | AJ8: 0.35 | AQ8: =_xlfn.IFS(C8>H8,$G$2,C8>=J8,$I$2,C8>=L8,$K$2,C8>=N8,$M$2,C8>=P8,$O$2,C8>=R8,$Q$2,C8<T8,$S$2) -> BB+
B9: =Analysis!B15/Analysis!B4*100 -> 4.275003023 | C9: =IF(C27="",Analysis!C15/Analysis!C4*100,C27) -> 2.682848307 | D9: =Analysis!D15/Analysis!D4*100 -> 3.399882294 | E9: EBITDA Margin (%) | G9: > | H9: 5.0001 | I9: 5 | J9: 3 | K9: 5 | L9: 3 | M9: 2.99 | N9: 2 | O9: 1.99 | P9: 1 | Q9: 0.99 | R9: 0 | S9: < | T9: 0 | V9: EBITDA Margin (%) | W9: =IF(Y9=0,_xlfn.IFS(C9>H9,$G$2,C9>=J9,$I$2,C9>=L9,$K$2,C9>=N9,$M$2,C9>=P9,$O$2,C9>=R9,$Q$2,C9<T9,$S$2),VLOOKUP(X9,$AA$3:$AC$14,2,0)) ->  | X9: =IF(Y9=0,VLOOKUP(W9,$AD$3:$AH$13,3,0),VLOOKUP(AQ9,$AD$6:$AH$17,3,0)+Y9) -> 1 | Y9: -4 | AA9: 7 | AB9: BB | AC9: Ba2 | AD9: BB- | AE9: Ba3 | AF9: 6 | AG9: Speculative Quality | AH9: 0.0223 | AI9: 0.4 | AJ9: 0.35 | AQ9: =_xlfn.IFS(C9>H9,$G$2,C9>=J9,$I$2,C9>=L9,$K$2,C9>=N9,$M$2,C9>=P9,$O$2,C9>=R9,$Q$2,C9<T9,$S$2) -> B+
E10: Liquidity | AA10: 6 | AB10: BB- | AC10: Ba3 | AD10: B+ | AE10: B1 | AF10: 5 | AG10: Speculative Quality with High Risk | AH10: 0.0303 | AI10: 0.3 | AJ10: 0.3
B11: =Analysis!B11/Analysis!B35*100 -> 9.104555541 | C11: =IF(C29="",Analysis!C11/Analysis!C35*100,C29) -> 0.9490992625 | D11: =(Analysis!D11/Analysis!D35)*100 -> 1.899007337 | E11: Cash / Total Assets (%) | G11: > | H11: 10.001 | I11: 10 | J11: 5 | K11: 10 | L11: 5 | M11: 4.99 | N11: 2 | O11: 1.99 | P11: 1.5 | Q11: 1.49 | R11: 1 | S11: < | T11: 0.99 | V11: Cash / Total Assets (%) | W11: =IF(Y11=0,_xlfn.IFS(C11>H11,$G$2,C11>=J11,$I$2,C11>=L11,$K$2,C11>=N11,$M$2,C11>=P11,$O$2,C11>=R11,$Q$2,C11<=T11,$S$2),VLOOKUP(X11,$AA$3:$AC$14,2,0)) ->  | X11: =IF(Y11=0,VLOOKUP(W11,$AD$3:$AH$13,3,0),VLOOKUP(AQ11,$AD$6:$AH$17,3,0)+Y11) -> -2 | Y11: -4 | AA11: 5 | AB11: B+ | AC11: B1 | AD11: B | AE11: B2 | AF11: 4 | AG11: Speculative Quality with High Risk | AH11: 0.0593 | AI11: 0.15 | AJ11: 0.15 | AQ11: =_xlfn.IFS(C11>H11,$G$2,C11>=J11,$I$2,C11>=L11,$K$2,C11>=N11,$M$2,C11>=P11,$O$2,C11>=R11,$Q$2,C11<T11,$S$2) -> C
B12: =Analysis!B13 -> 1.218516344 | C12: =IF(C30="",Analysis!C13,C30) -> 1.263647552 | D12: =Analysis!D13 -> 1.316646465 | E12: Current Ratio | G12: > | H12: 3.001 | I12: 3 | J12: 2 | K12: 3 | L12: 2 | M12: 1.99 | N12: 1 | O12: 0.99 | P12: 0.75 | Q12: 0.74 | R12: 0.5 | S12: < | T12: 0.49 | V12: Current Ratio | W12: =IF(Y12=0,_xlfn.IFS(C12>H12,$G$2,C12>=J12,$I$2,C12>=L12,$K$2,C12>=N12,$M$2,C12>=P12,$O$2,C12>=R12,$Q$2,C12<=T12,$S$2),VLOOKUP(X12,$AA$3:$AC$14,2,0)) -> B+ | X12: =IF(Y12=0,VLOOKUP(W12,$AD$3:$AH$13,3,0),VLOOKUP(AQ12,$AD$6:$AH$17,3,0)+Y12) -> 5 | Y12: 0 | AA12: 4 | AB12: B | AC12: B2 | AD12: B- | AE12: B3 | AF12: 3 | AG12: Speculative Quality with High Risk | AH12: 0.1077 | AI12: 0.05 | AJ12: 0.05 | AQ12: =_xlfn.IFS(C12>H12,$G$2,C12>=J12,$I$2,C12>=L12,$K$2,C12>=N12,$M$2,C12>=P12,$O$2,C12>=R12,$Q$2,C12<T12,$S$2) -> B+
B13: =Analysis!B12 -> 0.1601175905 | C13: =IF(C31="",Analysis!C12,C31) -> 0.109156457 | D13: =Analysis!D12 -> 0.143906013 | E13: Quick Ratio | G13: > | H13: 2.5001 | I13: 2.5 | J13: 1.5 | K13: 2.5 | L13: 1.5 | M13: 1.49 | N13: 0.5 | O13: 0.49 | P13: 0.3 | Q13: 0.29 | R13: 0.1 | S13: < | T13: 0.09 | V13: Quick Ratio | W13: =IF(Y13=0,_xlfn.IFS(C13>H13,$G$2,C13>=J13,$I$2,C13>=L13,$K$2,C13>=N13,$M$2,C13>=P13,$O$2,C13>=R13,$Q$2,C13<=T13,$S$2),VLOOKUP(X13,$AA$3:$AC$14,2,0)) -> B- | X13: =IF(Y13=0,VLOOKUP(W13,$AD$3:$AH$13,3,0),VLOOKUP(AQ13,$AD$6:$AH$17,3,0)+Y13) -> 3 | Y13: 0 | AA13: 3 | AB13: B- | AC13: B3 | AD13: C | AE13: C | AF13: 2 | AG13: Poorest Quality and Typically in Default | AH13: 0.99 | AI13: 0.025 | AJ13: 0.025 | AQ13: =_xlfn.IFS(C13>H13,$G$2,C13>=J13,$I$2,C13>=L13,$K$2,C13>=N13,$M$2,C13>=P13,$O$2,C13>=R13,$Q$2,C13<T13,$S$2) -> B-
E14: Cash Flow / Leverage | AA14: 2 | AB14: C | AC14: C
B15: =(Analysis!B31-Analysis!B30-Analysis!B20)/(Analysis!B15) -> 1.210278171 | C15: =IF(C33="",(Analysis!C31-Analysis!C30-Analysis!C20)/(Analysis!C15),C33) -> 2.098909091 | D15: =(Analysis!D31-Analysis!D30-Analysis!D20)/(Analysis!D15) -> 6.539280959 | E15: Debt / EBITDA Ratio | G15: < | H15: 2.49 | I15: 2.5 | J15: 3.49 | K15: 2.5 | L15: 3.49 | M15: 3.5 | N15: 4.49 | O15: 4.5 | P15: 5.25 | Q15: 5.26 | R15: 6 | S15: > | T15: 6 | V15: Debt / EBITDA Ratio | W15: =IF(Y15=0,IF(C15<=0,"C",_xlfn.IFS(C15<H15,$G$2,C15<=J15,$I$2,C15<=L15,$K$2,C15<=N15,$M$2,C15<=P15,$O$2,C15<=R15,$Q$2,C15>T15,$S$2)),VLOOKUP(X15,$AA$3:$AC$14,2,0)) -> BB+ | X15: =IF(Y15=0,VLOOKUP(W15,$AD$3:$AH$13,3,0),VLOOKUP(AQ15,$AD$3:$AH$17,3,0)+Y15) -> 8 | Y15: 0 | AD15: No | AQ15: =IF(C15<=0,"C",_xlfn.IFS(C15<H15,$G$2,C15<=J15,$I$2,C15<=L15,$K$2,C15<=N15,$M$2,C15<=P15,$O$2,C15<=R15,$Q$2,C15>T15,$S$2)) -> BB+
B16: =((Analysis!B31-Analysis!B30-Analysis!B20)/Analysis!B33) -> 1.754613807 | C16: =IF(C34="",((Analysis!C31-Analysis!C30-Analysis!C20)/Analysis!C33),C34) -> 1.602443087 | D16: =((Analysis!D31-Analysis!D30-Analysis!D20)/Analysis!D33) -> 1.220124224 | E16: Debt/ TNW (%) | G16: < | H16: 0.99 | I16: 1 | J16: 1.99 | K16: 1 | L16: 1.99 | M16: 2 | N16: 2.99 | O16: 3 | P16: 3.99 | Q16: 4 | R16: 4.99 | S16: > | T16: 5 | V16: Debt/ TNW (%) | W16: =IF(Y16=0,IF(C16<=0,"C",_xlfn.IFS(C16<H16,$G$2,C16<=J16,$I$2,C16<=L16,$K$2,C16<=N16,$M$2,C16<=P16,$O$2,C16<=R16,$Q$2,C16>=T16,$S$2)),VLOOKUP(X16,$AA$3:$AC$14,2,0)) -> BB | X16: =IF(Y16=0,VLOOKUP(W16,$AD$3:$AH$13,3,0),VLOOKUP(AQ16,$AD$6:$AH$17,3,0)+Y16) -> 7 | Y16: 0 | AE16: Divvy Rating | AF16: RiskCalc Rating | AG16: Rating Definition | AH16: Probability of Default | AQ16: =IF(C16<=0,"C",_xlfn.IFS(C16<H16,$G$2,C16<=J16,$I$2,C16<=L16,$K$2,C16<=N16,$M$2,C16<=P16,$O$2,C16<=R16,$Q$2,C16>T16,$S$2)) -> BB
B17: =((Analysis!B31-Analysis!B30-Analysis!B20)/((Analysis!B31-Analysis!B30-Analysis!B20)+(Analysis!B40)))*100 -> 63.69727047 | C17: =IF(C35="",((Analysis!C31-Analysis!C30-Analysis!C20)/((Analysis!C31-Analysis!C30-Analysis!C20)+(Analysis!C40)))*100,C35) -> 61.75243394 | D17: =((Analysis!D31-Analysis!D30-Analysis!D20)/((Analysis!D31-Analysis!D30-Analysis!D20)+(Analysis!D40)))*100 -> 54.95747538 | E17: Debt / Capital (%) | G17: < | H17: 39.99 | I17: 40 | J17: 59.99 | K17: 40 | L17: 59.99 | M17: 60 | N17: 69.99 | O17: 70 | P17: 79.99 | Q17: 80 | R17: 90 | S17: > | T17: 90.001 | V17: Debt / Capital (%) | W17: =IF(Y17=0,IF(C17<=0,"C",_xlfn.IFS(C17<H17,$G$2,C17<=J17,$I$2,C17<=L17,$K$2,C17<=N17,$M$2,C17<=P17,$O$2,C17<=R17,$Q$2,C17>T17,$S$2)),VLOOKUP(X17,$AA$3:$AC$14,2,0)) -> B+ | X17: =IF(Y17=0,VLOOKUP(W17,$AD$3:$AH$13,3,0),VLOOKUP(AQ17,$AD$6:$AH$17,3,0)+Y17) -> 5 | Y17: 0 | AD17: 12 | AE17: A | AF17: A | AG17: Superior Credit Quality | AH17: 0.0004 | AQ17: =IF(C17<=0,"C",_xlfn.IFS(C17<H17,$G$2,C17<=J17,$I$2,C17<=L17,$K$2,C17<=N17,$M$2,C17<=P17,$O$2,C17<=R17,$Q$2,C17>T17,$S$2)) -> B+
C18: ↑ Target Period ↑ | V18: Max Risk Grade ± 1 | W18: =IF(AT32=1,IF(AN39-AM39<0,VLOOKUP(AM39-1,AD17:AH29,2,0)),IF(AN39-AM39>0,VLOOKUP(AM39+1,AD17:AH29,2,0),"NA")) -> NA | AD18: 11 | AE18: BBB+ | AF18: Baa1 | AG18: Investment Grade Quality | AH18: 0.0029
B19: Yellow | C19: Green | D19: Red | V19: Max Risk Grade ± 2 | W19: =IF(AT33=1,IF(AN39-AM39<-1,VLOOKUP(AM39-2,AD17:AH29,2,0)),IF(AN39-AM39>1,VLOOKUP(AM39+2,AD17:AH29,2,0),"NA")) -> NA | X19: Manager Approval Req. | AD19: 10 | AE19: BBB | AF19: Baa2 | AG19: Investment Grade Quality | AH19: 0.0034
V20: Max Risk Grade ± 3 | W20: =IF(AT34=1,IF(AR50-AM39<-2,VLOOKUP(AM39-3,AD17:AH29,2,0)),IF(AR50-AM39>2,VLOOKUP(AM39+3,AD17:AH29,2,0),"NA")) -> NA | X20: VP of Credit Risk, or CCO Req.
C21: What-If Analysis | AD21: 9 | AE21: BBB- | AF21: Baa3 | AG21: Investment Grade Quality | AH21: 0.0045
B22: EBITDA / Int Expense | V22: Implied Card Limit Based on Risk Grade | AD22: 8 | AE22: BB+ | AF22: Ba1 | AG22: Speculative Quality | AH22: 0.0063
B23: EBIT / Interest Expense | V23: Implied Risk Grade | X23: =IF(AN39-AM39<0,_xlfn.IFS(AN39-AM39<-2,W20,AN39-AM39<-1,W19,AN39-AM39<0,W18),IF(AM39>AN39,M1,_xlfn.IFS(AN39-AM39>2,W20,AN39-AM39>1,W19,AN39-AM39>0,W18,AN39-AM39=0,M1))) -> NA | Y23: Override | AA23: BB+ | AD23: 7 | AE23: BB | AF23: Ba2 | AG23: Speculative Quality | AH23: 0.0113
B24: EBITDA/CPLTD + Int exp | V24: Credit Rating | X24: % (up to) of Monthly Revenue | AD24: 6 | AE24: BB- | AF24: Ba3 | AG24: Speculative Quality | AH24: 0.0223
B25: Profitability and Scale | V25: A- and Stronger | X25: 0.7 | AD25: 5 | AE25: B+ | AF25: B1 | AG25: Speculative Quality with High Risk | AH25: 0.0303
B26: Revenue (USD MM) | V26: BBB+ | X26: 0.6 | AD26: 4 | AE26: B | AF26: B2 | AG26: Speculative Quality with High Risk | AH26: 0.0593
B27: EBITDA Margin (%) | V27: BBB | X27: 0.6 | AD27: 3 | AE27: B- | AF27: B3 | AG27: Speculative Quality with High Risk | AH27: 0.1077
B28: Liquidity | V28: BBB- | X28: 0.6 | AD28: 2 | AE28: CCC+ | AF28: Caa | AG28: Highly Speculative Quality with Very High Risk | AH28: 0.22
B29: Cash / Total Assets (%) | V29: BB+ | X29: 0.5 | AD29: 1 | AE29: C | AF29: C | AG29: Poorest Quality and Typically in Default | AH29: 0.99 | AL29: Rows Above Each Rating
B30: Current Ratio | V30: BB | X30: 0.45 | AD30: IF Total in Column AJ is 0 then the rating is SS for that metric
B31: Quick Ratio | V31: BB- | X31: 0.4 | AD31: 1 | AE31: 2 | AF31: 3 | AG31: 3 | AH31: 4 | AI31: 5 | AJ31: Total | AL31: (1) BB+ and above | AM31: (2) BB and above | AN31: (3) BB- and above | AO31: (3) B+ and above | AP31: (4) B and above | AQ31: (5) B- and above | AT31: Max Risk Grade ±1, ±2, ±3 for decreases (1 = yes, there are more than 5 rows less the current risk rating model and justify a downgrade)
B32: Cash Flow / Leverage | V32: B+ | X32: 0.3 | AD32: =IF(Y4=0,IF($C4>H4,1,0),IF(X4>7,1,0)) -> 0 | AE32: =IF(Y4=0,IF(OR($C4>I4,$C4>J4),1,0),IF(X4>6,1,0)) -> 0 | AF32: =IF(Y4=0,IF(OR($C4>K4,$C4>L4),1,0),IF(X4>5,1,0)) -> 0 | AG32: =IF(Y4=0,IF(OR($C4>M4,$C4>N4),1,0),IF(X4>4,1,0)) -> 0 | AH32: =IF(Y4=0,IF(OR($C4>O4,$C4>P4),1,0),IF(X4>3,1,0)) -> 1 | AI32: =IF(Y4=0,IF(OR($C4>Q4,$C4>R4),1,0),IF(X4>2,1,0)) -> 1 | AJ32: =SUM(AD32:AI32) -> 2 | AL32: =SUM(AD32:AD45) -> 1 | AM32: =SUM(AE32:AE45) -> 2 | AN32: 2 | AO32: 5 | AP32: 7 | AQ32: =SUM(AI32:AI45) -> 8 | AT32: =IF(AU33>0,1,0) -> 0 | AU32: Amount from DECREASE MAX to Current Model Risk Rating
B33: Debt / EBITDA Ratio | V33: B | X33: 0.15 | AD33: =IF(Y5=0,IF($C5>H5,1,0),IF(X5>7,1,0)) -> 0 | AE33: =IF(Y5=0,IF(OR($C5>I5,$C5>J5),1,0),IF(X5>6,1,0)) -> 0 | AF33: =IF(Y5=0,IF(OR($C5>K5,$C5>L5),1,0),IF(X5>5,1,0)) -> 0 | AG33: =IF(Y5=0,IF(OR($C5>M5,$C5>N5),1,0),IF(X5>4,1,0)) -> 1 | AH33: =IF(Y5=0,IF(OR($C5>O5,$C5>P5),1,0),IF(X5>3,1,0)) -> 1 | AI33: =IF(Y5=0,IF(OR($C5>Q5,$C5>R5),1,0),IF(X5>2,1,0)) -> 1 | AJ33: =SUM(AD33:AI33) -> 3 | AT33: =IF(AU33>1,1,0) -> 0 | AU33: =AM39-AQ39 -> -2
B34: Debt/ TNW (%) | V34: B- | X34: 0.05 | AD34: 0 | AE34: =IF(Y6=0,IF(OR($C6>I6,$C6>J6),1,0),IF(X6>6,1,0)) -> 0 | AF34: =IF(Y6=0,IF(OR($C6>K6,$C6>L6),1,0),IF(X6>5,1,0)) -> 0 | AG34: =IF(Y6=0,IF(OR($C6>M6,$C6>N6),1,0),IF(X6>4,1,0)) -> 0 | AH34: 0 | AI34: 0 | AJ34: =SUM(AD34:AI34) -> 0 | AL34: Rows Below Each Rating | AT34: =IF(AU33>2,1,0) -> 0
B35: Debt / Capital (%) | V35: CCC+ and Worse | X35: 0.025 | AL35: (1) BB+ and above | AM35: (2) BB and above | AN35: (3) BB- and above | AO35: (3) B+ and above | AP35: (4) B and above | AQ35: (5) B- and above
V36: Implied Card Limit | X36: =IFERROR(IF(OR(AA23="No",""),VLOOKUP(X23,AD2:AI13,6,0),VLOOKUP(AA23,AD2:AI13,6,0))*IF(C3<6,B8/B3,(C8/C3))*1000*1000,"") -> 4270958.333 | AD36: 0 | AE36: 0 | AF36: 0 | AG36: 0 | AH36: 1 | AI36: 1 | AJ36: =SUM(AD36:AI36) -> 2 | AL36: =11-AL32 -> 10 | AM36: 9 | AN36: 9 | AO36: 6 | AP36: 4 | AQ36: =11-AQ32 -> 3
V37: =IF(AM39>AN39,"",_xlfn.IFS(AN39-AM39>2,"VP of Credit Risk or CCO approval required for +3 notch",AN39-AM39>1,"Manager approval required for +2 notch",AN39-AM39>0,"",AN39-AM39=0,"")) ->  | AD37: 0 | AE37: 0 | AF37: 0 | AG37: 0 | AH37: 0 | AI37: 0 | AJ37: =SUM(AD37:AI37) -> 0
V38: Comments | AL38: Current Risk Rating | AN38: Max Risk Notching | AO38: Difference From Max | AQ38: DECREASE MAX
AD39: 0 | AE39: 0 | AF39: 0 | AG39: 0 | AH39: 0 | AI39: =IF(Y11=0,IF(OR($C11>Q11,$C11>R11),1,0),IF(X11>2,1,0)) -> 0 | AJ39: =SUM(AD39:AI39) -> 0 | AL39: =M1 -> C | AM39: =VLOOKUP(AL39,$AD$3:$AH$13,3,0) -> 2 | AN39: =MAX(AR45,AR50) -> 0 | AO39: =AQ39-AN39 -> 4 | AQ39: =AZ45 -> 4
AD40: 0 | AE40: 0 | AF40: 0 | AG40: 1 | AH40: 1 | AI40: 1 | AJ40: =SUM(AD40:AI40) -> 3
AD41: 0 | AE41: 0 | AF41: 0 | AG41: 0 | AH41: 0 | AI41: 1 | AJ41: =SUM(AD41:AI41) -> 1 | AL41: +1 Increase and +2 Increase | AT41: Total Decrease Per Policy
AL42: (1) BB+ and above | AM42: (2) BB and above | AN42: (3) BB- and above | AO42: (3) B+ and above | AP42: (4) B and above | AQ42: (5) B- and above | AR42: MAX | AT42: (1) BB+ and above | AU42: (2) BB and above | AV42: (3) BB- and above | AW42: (3) B+ and above | AX42: (4) B and above | AY42: (5) B- and above | AZ42: MAX
AD43: =IF(C15<0,0,IF(Y15=0,IF($C15<H15,1,0),IF(X15>7,1,0))) -> 1 | AE43: =IF(C15<0,0,IF(Y15=0,IF(OR($C15<I15,$C15<J15),1,0),IF(X15>6,1,0))) -> 1 | AF43: =IF(C15<0,0,IF(Y15=0,IF(OR($C15<K15,$C15<L15),1,0),IF(X15>5,1,0))) -> 1 | AG43: =IF(C15<0,0,IF(Y15=0,IF(OR($C15<M15,$C15<N15),1,0),IF(X15>4,1,0))) -> 1 | AH43: =IF(C15<0,0,IF(Y15=0,IF(OR($C15<O15,$C15<P15),1,0),IF(X15>3,1,0))) -> 1 | AI43: =IF(C15<0,0,IF(Y15=0,IF(OR($C15<Q15,$C15<R15),1,0),IF(X15>2,1,0))) -> 1 | AJ43: =SUM(AD43:AI43) -> 6 | AL43: =IF(AL32>7,1,0) -> 0 | AM43: =IF(AM32>7,1,0) -> 0 | AN43: =IF(AN32>7,1,0) -> 0 | AO43: =IF(AO32>7,1,0) -> 0 | AP43: =IF(AP32>7,1,0) -> 0 | AQ43: =IF(AQ32>7,1,0) -> 1
AD44: =IF(C16<0,0,IF(Y16=0,IF($C16<H16,1,0),IF(X16>7,1,0))) -> 0 | AE44: =IF(C16<0,0,IF(Y16=0,IF(OR($C16<I16,$C16<J16),1,0),IF(X16>6,1,0))) -> 1 | AF44: =IF(C16<0,0,IF(Y16=0,IF(OR($C16<K16,$C16<L16),1,0),IF(X16>5,1,0))) -> 1 | AG44: =IF(C16<0,0,IF(Y16=0,IF(OR($C16<M16,$C16<N16),1,0),IF(X16>4,1,0))) -> 1 | AH44: =IF(C16<0,0,IF(Y16=0,IF(OR($C16<O16,$C16<P16),1,0),IF(X16>3,1,0))) -> 1 | AI44: =IF(C16<0,0,IF(Y16=0,IF(OR($C16<Q16,$C16<R16),1,0),IF(X16>2,1,0))) -> 1 | AJ44: =SUM(AD44:AI44) -> 5 | AL44: =IF(AL36<3,1, 0) -> 0 | AM44: =IF(AM36<3,1, 0) -> 0 | AN44: 0 | AO44: 0 | AP44: 0 | AQ44: =IF(AQ36<3,1, 0) -> 0 | AT44: =IF(AL36<6,1, 0) -> 0 | AU44: =IF(AM36<5,1, 0) -> 0 | AV44: =IF(AN36<5,1, 0) -> 0 | AW44: =IF(AO36<5,1, 0) -> 0 | AX44: =IF(AP36<5,1, 0) -> 1 | AY44: 1
AD45: =IF(C17<0,0,IF(Y17=0,IF($C17<H17,1,0),IF(X17>7,1,0))) -> 0 | AE45: =IF(C17<0,0,IF(Y17=0,IF(OR($C17<I17,$C17<J17),1,0),IF(X17>6,1,0))) -> 0 | AF45: =IF(C17<0,0,IF(Y17=0,IF(OR($C17<K17,$C17<L17),1,0),IF(X17>5,1,0))) -> 0 | AG45: =IF(C17<0,0,IF(Y17=0,IF(OR($C17<M17,$C17<N17),1,0),IF(X17>4,1,0))) -> 1 | AH45: =IF(C17<0,0,IF(Y17=0,IF(OR($C17<O17,$C17<P17),1,0),IF(X17>3,1,0))) -> 1 | AI45: =IF(C17<0,0,IF(Y17=0,IF(OR($C17<Q17,$C17<R17),1,0),IF(X17>2,1,0))) -> 1 | AJ45: =SUM(AD45:AI45) -> 3 | AL45: =IF(AL44+AL43=2,8, FALSE) -> FALSE | AM45: =IF(AM44+AM43=2,7, FALSE) -> FALSE | AN45: =IF(AN44+AN43=2,6, FALSE) -> FALSE | AO45: =IF(AO44+AO43=2,5, FALSE) -> FALSE | AP45: =IF(AP44+AP43=2,4, FALSE) -> FALSE | AQ45: =IF(AQ44+AQ43=2,3, FALSE) -> FALSE | AR45: =MAX(AL45:AQ45) -> 0 | AT45: =IF(AT44+AT43=1,4, FALSE) -> FALSE | AU45: =IF(AU44+AU43=1,7, FALSE) -> FALSE | AV45: =IF(AV44+AV43=1,6, FALSE) -> FALSE | AW45: =IF(AW44+AW43=1,5, FALSE) -> FALSE | AX45: =IF(AX44+AX43=1,4, FALSE) -> 4 | AY45: =IF(AY44+AY43=1,3, FALSE) -> 3 | AZ45: =MAX(AT45:AY45) -> 4
AL47: +3 Increase | AR47: MAX
AL48: =IF(AL32>7,1,0) -> 0 | AM48: =IF(AM32>7,1,0) -> 0 | AN48: 0 | AO48: 0 | AP48: =IF(AP32>7,1,0) -> 0 | AQ48: =IF(AQ32>7,1,0) -> 1
AL49: =IF(AL36<2,1, 0) -> 0 | AM49: 0 | AN49: 0 | AO49: 0 | AP49: 0 | AQ49: =IF(AQ36<2,1, 0) -> 0
AL50: =IF(AL49+AL48=2,8, FALSE) -> FALSE | AM50: =IF(AM49+AM48=2,7, FALSE) -> FALSE | AN50: =IF(AN49+AN48=2,6, FALSE) -> FALSE | AO50: =IF(AO49+AO48=2,5, FALSE) -> FALSE | AP50: =IF(AP49+AP48=2,4, FALSE) -> FALSE | AQ50: =IF(AQ49+AQ48=2,3, FALSE) -> FALSE | AR50: =MAX(AL50:AQ50) -> 0

Sheet Face Page Input
B1: Input | E1: Output | G1: Override
A3: Credit Rating for: | E3: =IF(G3="",A3 &RiskNotching!G1,A3 & G3) -> Credit Rating for: Rikkel Corp
A4: Budgets / Users: | B4: 3 | E4: =IF(G4="",A31&""&DOLLAR(B31,0),A31&" "&DOLLAR(G4,0)) -> Requested Limit: $2,000,000
A5: Users: | B5: 78 | E5: =IF(G5="",A32 & DOLLAR(B32,0),A32 & DOLLAR(G5,0)) -> Approved Limit: $2,000,000
A6: Bank Connection: | B6: No | E6: =IF(B18="",A33 & " " & DOLLAR(B33,0),A18& " " &DOLLAR(B18,0)) -> Previous Limit: $800,000
A7: Pay Cycle: | B7: net25 | E7: =IF(B7="",IF(G7="",A35& "" & B35,A35&" "&G7),IF(G7="",A7&" "&B7,A7&" "&G7)) -> Pay Cycle: net25
A8: Previous Rating (Auto UW): | B8: b | E8: =IF(G8="",A4 & B4 & "/" &B5,A4 & " " & G8) -> Budgets / Users: 3/78
A9: #30/60/90 DPD: | B9: 3 | E9: =A6 & " " & B6 -> Bank Connection: No
A10: /60/ | B10: 3 | E10: =IF(G10="",A39 & B39,A39 & " " &G10) -> Underwriter: Darrell Day
A11: #NSF: | B11: 1 | E11: =IF(G11="",A34 & " " & B34,A34 & " " & G11) -> Approved Rating: 4 (B)
A12: Avg 3 Month Spend: | B12: 0 | E12: =IF(G12="",A37&" "&MONTH(B37)&"/"&DAY(B37)&"/"&YEAR(B37),A37& " " & G12) -> Rating Date: 6/5/2025
A13: Patronus Score/ PD: | B13: C1 | E13: =IF(B8="",IF(G13="",A34&" "&B34,A8 &" "&G13),IF(G13="", A8 & " " & VLOOKUP(B8,'FP Dropdowns & OTher'!E1:F7,2,FALSE),A8&" "&G13)) -> Previous Rating (Auto UW): 4 (B)
A14: PD: | B14: 0.237055016 | E14: =IF(G14="",A9 & " " & B9 &"/" &B10,A9 & " " & G14) -> #30/60/90 DPD: 3/3
A15: Industry Type: | B15: Electrical Contractors and Other Wiring Installation Contractors | E15: =IF(G15="",A11 & " " & B11, A11 & " " & G15) -> #NSF: 1
A16: Business/Bill Tenure: | B16: 31 | E16: =IF(G16="",A12&" "&DOLLAR(B12,0),A12&" "&DOLLAR(G16,0)) -> Avg 3 Month Spend: $0
A17: /Bill Tenure: | B17: 2022-12-16 | E17: =IF(G17="",A13 & B13 & "/" & TEXT(B14,"0.0%"),A13 & " " & G17) -> Patronus Score/ PD: C1/23.7%
A18: Previous Limit: | B18: 800000 | E18: =IF(B15="",IF(G18="",A38 &" "&B38,A38 & " " & G18),IF(G18="", A15& " " &B15,A15&" "&G18)) -> Industry Type: Electrical Contractors and Other Wiring Installation Contractors
E19: =IF(G19="",A16 & " " & (YEAR(TODAY()-365*B16)) & "/" & " " & TEXT(B17,"MMM-YYYY"),A16 & " " & G19) -> Business/Bill Tenure: 1995/ Dec-2022
A20: Revenue: | B20: =Analysis!C4 -> 102503 | E20: =IF(G20="",A29 & B29,A29 & " " & G20) -> Date of F/S: 3/2025
A21: Net Profit: | B21: =Analysis!C6 -> 1510 | E21: =IF(G21="",A20& " " & DOLLAR(B20/1000,1)&"MM (FYE" & B25 &")",A20 & " " &G21) -> Revenue: $102.5MM (FYE2024)
A22: Cash: | B22: =Analysis!C11 -> 157 | E22: =IF(G22="",A21&" "&DOLLAR(B21/1000,1)&"MM (FYE"&B25&")",A21&" "&G22) -> Net Profit: $1.5MM (FYE2024)
A23: Retained Earnings: | B23: =Analysis!C44 -> 3575 | E23: =IF(G23="",IF(B27="",(A22&" "&DOLLAR(B22/1000,1)&"MM (FYE"&B25&")"),(A22&" "&DOLLAR(B22/1000,1)&"MM ("& B28 & "/" & B27 &")")),A22 & " " &G23) -> Cash: $0.2MM (3/2025)
E24: =IF(G24="",A23&" $"&ROUND(B23/1000,1)&"MM (FYE" & B25 &")",A23 & " " & G24) -> Retained Earnings: $3.6MM (FYE2024)
A25: Date Year: | B25: =YEAR(Analysis!C3) -> 2024
A26: Date Month: | B26: =MONTH(Analysis!C3) -> 12
A27: Date Year (YTD): | B27: =IF(Analysis!D11="","",YEAR(Analysis!D3)) -> 2025
A28: Date Month (YTD): | B28: =IF(Analysis!D11="","",MONTH(Analysis!D3)) -> 3
A29: Date of F/S: | B29: =IF(Analysis!D3>Analysis!C3," " & 'Face Page Input'!B28 & "/" & 'Face Page Input'!B27, " " &'Face Page Input'!B26 & "/" &'Face Page Input'!B25) -> 3/2025
A31: Requested Limit: | B31: 2000000
A32: Approved Limit: | B32: 2000000
A33: Previous Limit: | B33: 500000
A34: Approved Rating: | B34: 4 (B)
A35: Pay Cycle: | B35: Monthly
A36: Previous Rating (Auto UW): | B36: 4 (B)
A37: Rating Date: | B37: 2025-06-05
A38: Industry Type:
A39: Underwriter: | B39: Darrell Day
I41: Requested Limit: | J41: =B31 -> 2000000 | K41: Approved Rating: | L41: =B34 -> 4 (B) | M41: Industry Type: | N41: =B15 -> Electrical Contractors and Other Wiring Installation Contractors
I42: Approved Limit: | J42: =B32 -> 2000000 | K42: Rating Date: | L42: =B37 -> 2025-06-05 | M42: Business/Bill Tenure: | N42: =(YEAR(TODAY()-365*B16)) & "/" & TEXT(B17,"MMM-YYYY") -> 1995/Dec-2022
I43: Previous Limit: | J43: =B33 -> 500000 | K43: Prior Rating (Auto): | L43: =RIGHT(E11,7) -> 4 (B) | M43: Date of F/S: | N43: =B29 -> 3/2025
I44: Pay Cycle: | J44: =B7 -> net25 | K44: #30/60/90 DPD: | L44: =B9 & "/" &B10 -> 3/3 | M44: Revenue: | N44: =RIGHT(E21,19) -> $102.5MM (FYE2024)
I45: Budgets / Users: | J45: =B4 & " / " &B5 -> 3 / 78 | K45: #NSF: | L45: =B11 -> 1 | M45: Net Profit: | N45: =RIGHT(E22,18) -> : $1.5MM (FYE2024)
I46: Bank Connection: | J46: =B6 -> No | K46: Avg 3 Month Spend: | L46: =B12 -> 0 | M46: Cash: | N46: =RIGHT(E23,16) -> $0.2MM (3/2025)
I47: Underwriter: | J47: =B39 -> Darrell Day | K47: Patronus Score/ PD: | L47: =B13 & "/" & TEXT(B14,"0.00%") -> C1/23.71% | M47: Retained Earnings: | N47: =RIGHT(E24,15) -> 3.6MM (FYE2024)

Sheet AI Prompt (hidden)

Sheet Sheet1 (hidden)

Sheet Ranges (hidden)
A1: Revenue
A2: o Satisfactory | B2: > | C2: 30 | D2: MM
A3: o Sufficient | B3: Between
A4: o Limited | B4: < | C4: 12.5 | D4: MM
A5: Profitability
A6: o Satisfactory | B6: > | C6: 0.05 | D6: net profit margin
A7: o Sufficient | B7: Between
A8: o Unsatisfactory | B8: < | C8: 0 | D8: net profit margin
A9: Liquidity
A10: o Satisfactory | B10: > | C10: 2 | D10: Current Ratio
A11: o Sufficient | B11: Between
A12: o Unsatisfactory | B12: < | C12: 1 | D12: Current Ratio
A13: Cashflow
A14: o Satisfactory | B14: > | C14: 2 | D14: times the requested line in EBITDA
A15: o Sufficient | B15: Between
A16: o Unsatisfactory | B16: < | C16: 1 | D16: times the requested line in EBITDA
A17: Solvency/Leverage
A18: o Satisfactory | B18: < | C18: 0.5 | D18: times Debt/TNW
A19: o Sufficient | B19: Between
A20: o Levered | B20: > | C20: 2 | D20: times Debt/TNW
A21: Debt Service Coverage & Fixed Charge Coverage
A22: o Satisfactory | B22: > | C22: 1.25 | D22: DSCR
A23: o Sufficient | B23: Between
A24: o Unsatisfactory | B24: < | C24: 1.1 | D24: SCR

Sheet Wording (hidden)
A1: Revenue & Profitability 1 | D1: Revenue & Profitability 2 | F1: Revenue & Profitability 3
A2: satisfactory | B2: increasing | D2: improved | F2: satisfactory | G2: improving | H2: net income
A3: sufficient | B3: decreasing | D3: contracting | F3: sufficient | G3: contracting | H3: net losses
A4: limited | F4: limited
A6: Liquidity & Cash Flow 1 | D6: Liquidity & Cash Flow 2 | F6: Liquidity & Cash Flow3
A7: satisfactory | D7: satisfactory | F7: satisfactory | G7: increase
A8: sufficient | D8: sufficient | F8: sufficient | G8: decrease
A9: limited | D9: limited | F9: limited
A11: SOLVENCY & LEVERAGE 1 | D11: SOLVENCY & LEVERAGE 2
A12: has satisfactory solvency | D12: satisfactory
A13: is sufficiently solvent | D13: sufficient
A14: is highly levered | D14: limited
A16: Yes
A17: No

Sheet FP Dropdowns & OTher (hidden)
A1: 1 (BB+) | C1: Net 25 | E1: bb+ | F1: 1 (BB+)
A2: 2 (BB) | C2: Monthly | E2: bb+ | F2: 2 (BB)
A3: 2 (BB-) | C3: Semi-monthly | E3: bb- | F3: 2 (BB-)
A4: 3 (B+) | C4: Weekly | E4: b+ | F4: 3 (B+)
A5: 4 (B) | C5: Daily | E5: b | F5: 4 (B)
A6: 5 (B-) | E6: b- | F6: 5 (B-)
A7: SS (C) | E7: C | F7: SS (C)
